Cogmind - Beta 16.1 @@@ ROGUE MODE // 2026.02.20 @ 19:48:01 Player: naththebg Result: Defending 0bPrime! Performance ------------- Evolutions (7) 3500 Regions Visited (20) 4000 Robots Destroyed (605) 3025 Value Destroyed (38040) 38040 Prototype IDs (161) 3220 Alien Tech Used (3) 600 Bonus (50757) 50757 TOTAL SCORE: 103142 Bonus ------- High Alert Combat Kills 30481 Follower Combat Kills 1266 Registered with UFD 300 Met Optimus in HQ 500 Met Zhirov 300 Used Core Reset Matrix 3000 Met Optimus at Protoforge 1000 Executed Drillbomb Mission 10000 Optimus Survived to 0b1 3000 Win 3000 Friendly Fire -2090 Cogmind --------- Core Integrity 72/1300 Matter 300/300 Energy 100/100 System Corruption 8% Temperature Cool (0) Movement Flying (45) Location 0bPrime Parts ------- > --- POWER (2) -------- (None) > --- PROPULSION (5) --- Impulse Thruster Array > --- UTILITY (10) ----- (None) > --- WEAPON (4) ------- (None) > --- INVENTORY (5) ---- Energy Well (350) Core Cannon Peak State ------------ > --- POWER ------------ Improved Quantum Reactor Improved Quantum Reactor Improved Quantum Reactor Hybrid Graviton Reactor Hybrid Graviton Reactor > --- PROPULSION ------- Enhanced Biometal Leg Experimental Biometal Leg Experimental Biometal Leg Experimental VSS Leg Experimental VSS Leg > --- UTILITY ---------- Advanced Power Amplifier Medium Storage Unit Experimental Optical Array Experimental Core Analyzer Experimental Core Analyzer Experimental Kinecellerator Experimental Reaction Control System Centrium Medium Armor Plating Improved Remote Force Field Power Bank > --- WEAPON ----------- Concept XC Strikerail Concept XC Strikerail Concept XC Strikerail Concept XC Strikerail > --- INVENTORY -------- Hybrid Graviton Reactor Experimental VSS Leg Centrium Medium Armor Plating Core Cannon Concept XC Strikerail Concept XC Strikerail Concept XC Strikerail Fusion Bomb Launcher [Rating: 242] Favorites ----------- Power Hybrid Graviton Reactor Engine Ion Engine Power Core Micro Fission Core Reactor Hybrid Graviton Reactor Propulsion Enhanced Biometal Leg Treads Light Treads Leg Enhanced Biometal Leg Wheel Compact Wheel Hover Unit Cooled Aerolev Unit Flight Unit Impulse Thruster Array Utility Medium Storage Unit Device Advanced Sensor Array Storage Medium Storage Unit Processor Experimental Core Analyzer Hackware Advanced Hacking Suite Protection Enhanced Scrap Shield Weapon Concept XC Strikerail Energy Gun Subdweller Laser Energy Cannon Ion Cannon Ballistic Gun Concept XC Strikerail Ballistic Cannon Overtuned Linear Accelerator Launcher Fusion Bomb Launcher Special Weapon CPS Tube Slashing Weapon Makeshift Sword Special Melee Weapon Advanced Datajack Build | -11 -10 -10 -8 -6 -6 -6 -6 -6 -5 -5 -5 -5 -4 -4 -4 -4 -3 -3 -3 -3 ------- Run | Yrd Mat Sub Scr Fac Was Fac Low Low Fac Was Fac Ext Fac Upp Upp Zhi Pro Res Qua Frg Slots Evolved 14 | . . . . 8 . . . . 2 . . . 2 . . . . 2 . . Power 1 | . . . . . . . . . 1 . . . . . . . . . . . Propulsion 3 | . . . . 2 . . . . . . . . 1 . . . . . . . Utility 8 | . . . . 5 . . . . 1 . . . 1 . . . . 1 . . Weapon 2 | . . . . 1 . . . . . . . . . . . . . 1 . . Parts Attached 217 | 6 11 10 5 36 1 4 3 1 7 3 5 . 14 . 1 3 . 2 3 102 Power 24 | 1 . 2 1 4 . . 1 . 1 . 1 . . . . . . 1 . 12 Engine 5 | 1 . 2 1 1 . . . . . . . . . . . . . . . . Core 7 | . . . . 3 . . 1 . 1 . 1 . . . . . . 1 . . Reactor 12 | . . . . . . . . . . . . . . . . . . . . 12 Propulsion 54 | 2 2 2 3 7 . 3 2 . 1 . 3 . 6 . . 3 . . 1 19 Treads 6 | . 2 2 . 2 . . . . . . . . . . . . . . . . Leg 20 | 2 . . . . . . . . . . . . . . . . . . . 18 Wheel 4 | . . . 3 1 . . . . . . . . . . . . . . . . Hover 23 | . . . . 4 . 3 2 . 1 . 3 . 6 . . 3 . . 1 . Flight 1 | . . . . . . . . . . . . . . . . . . . . 1 Utility 86 | 1 5 3 1 16 1 . . 1 3 1 1 . 3 . . . . 1 1 48 Device 41 | . . 1 . 9 . . . 1 1 . . . 1 . . . . . 1 27 Storage 7 | 1 2 . 1 1 . . . . . . . . . . . . . . . 2 Processor 13 | . . . . 3 . . . . 1 . . . 1 . . . . . . 8 Hackware 3 | . . . . 1 . . . . . . 1 . . . . . . 1 . . Protection 22 | . 3 2 . 2 1 . . . 1 1 . . 1 . . . . . . 11 Artifact . | . . . . . . . . . . . . . . . . . . . . . Weapon 53 | 2 4 3 . 9 . 1 . . 2 2 . . 5 . 1 . . . 1 23 Energy Gun 6 | 2 . 2 . 2 . . . . . . . . . . . . . . . . Energy Cannon 10 | . . . . 5 . . . . 1 1 . . 1 . . . . . 1 1 Ballistic Gun 10 | . . . . . . . . . . . . . . . . . . . . 10 Ballistic Cannon 17 | . 3 1 . 1 . . . . . . . . 1 . . . . . . 11 Launcher 4 | . 1 . . . . 1 . . . . . . 1 . . . . . . 1 Special Weapon 4 | . . . . . . . . . 1 1 . . 1 . 1 . . . . . Impact Weapon . | . . . . . . . . . . . . . . . . . . . . . Slashing Weapon 1 | . . . . 1 . . . . . . . . . . . . . . . . Piercing Weapon . | . . . . . . . . . . . . . . . . . . . . . Special Melee Weapon 1 | . . . . . . . . . . . . . 1 . . . . . . . Unidentified Prototypes 7 | . . . . . . . . . . . . . . . . 1 . . 1 5 Parts Lost 52 | . 1 4 . . . . . . 1 . . 1 3 . . . . . . 42 Power 4 | . . . . . . . . . . . . . . . . . . . . 4 Propulsion 10 | . . 2 . . . . . . 1 . . . . . . . . . . 7 Utility 22 | . . 2 . . . . . . . . . . 2 . . . . . . 18 Weapon 16 | . 1 . . . . . . . . . . 1 1 . . . . . . 13 Highest Loss Streak 6 | . 1 1 . . . . . . 1 . . 1 3 . . . . . . 6 To Critical Strikes 2 | . . 1 . . . . . . . . . . . . . . . . . 1 Average Backups 10 | 4 13 13 19 9 9 9 8 9 9 9 9 9 8 7 8 9 9 9 9 5 Power . | 1 1 1 . . 1 1 1 1 . 1 1 1 1 1 1 1 1 1 1 . Propulsion 2 | 2 5 3 2 1 3 2 2 2 1 2 1 2 1 2 2 2 2 2 2 . Utility 3 | . 2 4 8 4 3 3 3 4 4 4 5 5 3 1 2 2 4 3 3 1 Weapon 3 | . 4 4 6 2 1 1 1 1 2 1 1 1 2 1 1 1 . 1 2 2 Tool/Special . | . . . . . . . . . . . . . . . . . . . . . Unused Backups 39 | . 3 5 8 12 . 1 2 . 1 . 2 . . . . . . . . 5 Power 6 | . . 2 3 1 . . . . . . . . . . . . . . . . Propulsion 14 | . 1 2 3 2 . 1 . . 1 . 2 . . . . . . . . 2 Utility 10 | . . . 2 5 . . 2 . . . . . . . . . . . . 1 Weapon 6 | . 2 1 . 2 . . . . . . . . . . . . . . . 1 Tool/Special 3 | . . . . 2 . . . . . . . . . . . . . . . 1 Average Slot Usage (%) 90 | . 96 99 85 96 100 100 100 99 81 83 88 88 90 89 89 89 94 90 92 89 Engine 3 | . 14 14 6 . . . . . . . . . . . . . . . . . Core 3 | . . . . 5 6 6 6 6 10 11 11 11 10 10 10 10 10 9 9 . Reactor 3 | . . . . . . . . . . . . . . . . . . . . 10 Treads 7 | . 24 28 18 6 . . . . . . . . . . . . . . . . Leg 5 | . 4 . . . . . . . . . . . . . . . . . . 18 Wheel 1 | . . . 9 4 . . . . . . . . . . . . . . . . Hover 8 | . . . . 12 26 26 26 26 23 23 23 23 26 26 26 26 26 23 23 . Device 9 | . . . . 17 13 13 13 13 5 4 5 5 5 10 10 10 10 9 9 18 Storage 7 | . 14 14 14 6 6 6 6 6 5 5 5 5 5 5 5 5 5 4 4 2 Processor 9 | . . . . 9 13 13 13 13 16 17 17 17 15 15 15 15 15 14 14 11 Hackware 1 | . . . . 2 6 6 6 6 5 5 5 5 5 5 5 5 5 9 9 . Protection 8 | . 10 13 7 8 6 6 6 5 5 5 5 5 9 10 10 10 10 9 8 7 Energy Gun 5 | . 5 10 28 3 . . . . . . . . . . . . . . . . Energy Cannon 1 | . . . . 12 13 12 12 13 . . . . . . . . . 2 4 . Ballistic Gun 2 | . . . . . . . . . . . . . . . . . . . . 9 Ballistic Cannon 4 | . 22 17 . . . . . . . . . . . . . . . . . 6 Slashing Weapon 1 | . . . . 2 6 6 6 6 5 5 5 5 5 5 5 5 5 4 4 . Peak Build Rating 242 | 6 10 16 21 71 71 74 81 82 91 98 103 101 121 104 122 114 122 128 131 242 Average Rating 96 | 4 9 12 16 59 70 72 76 80 84 87 92 92 109 104 105 107 114 121 127 187 On Entrance 75 | . 6 10 16 21 71 70 74 81 81 86 89 92 98 104 104 106 114 114 123 131 Avg Prop Armor Cover (%) 12 | . . . . 14 . . . . . . . . 2 . . . . . . 3 Naked Turns 9 | . . . . . . . . . . . . . . . . . . . . 9 Heaviest Build 213 | 14 36 37 213 56 37 35 35 34 42 54 54 53 54 42 42 43 43 55 55 147 Greatest Support 148 | 20 40 40 40 40 40 40 40 40 50 50 50 50 57 53 53 55 68 70 70 148 Greatest Overweight (x) 17 | . . . 17 3 . . . . . 1 1 1 1 . . . . . 1 1 Average Overweight (x) . | . . . 2 . . . . . . . . . . . . . . . . . Largest Inventory Capacity 35 | 8 15 15 35 35 10 10 10 10 10 10 10 10 10 10 10 10 10 10 10 25 Average Capacity 12 | 6 14 15 24 10 10 10 10 10 10 10 10 10 10 10 10 10 10 10 10 7 Most Carried 35 | 7 15 15 35 34 10 10 10 10 10 10 10 10 10 8 10 10 10 10 10 13 Average Carried 11 | 5 13 14 20 10 10 10 9 10 9 9 9 9 9 7 9 9 9 9 9 7 Final Capacity 35 | 8 15 15 35 10 10 10 10 10 10 10 10 10 10 10 10 10 10 10 10 5 Final Carried 35 | 7 15 15 35 10 10 10 10 10 10 10 10 9 7 8 10 10 10 10 10 3 Scrap Suit Usage (%) 5 | . . . . . . . . . . . . . . . . . . . . 19 Parts Cannibalized 23 | . . . . . . . . . . . . . . . . . . . . 23 Class Distribution -------------------- 24% | Mutant 21% | Scout 12% | Scavenger-Tank 8% | Scavenger-Scrapper 8% | Scavenger-Gunner 7% | Hauler-Mutant 6% | Scavenger-Mutant Dominant Class ---------------- Mutant | -10/Materials Mutant | -10/Subcaves Hauler-Mutant | -8/Scraptown Derelict-Tank | -6/Factory Mutant | -6/Waste Mutant | -6/Factory Mutant | -6/Lower Caves Scavenger-Mutant | -6/Lower Caves Scout | -5/Factory Scout | -5/Waste Scout | -5/Factory Commander-Scout | -5/Extension Scout | -4/Factory Scout | -4/Upper Caves Scout | -4/Upper Caves Scout | -4/Zhirov Scout | -3/Proximity Caves Hacker-Scout | -3/Research Hacker-Scout | -3/Quarantine Scavenger-Tank | -3/Protoforge Resources | -11 -10 -10 -8 -6 -6 -6 -6 -6 -5 -5 -5 -5 -4 -4 -4 -4 -3 -3 -3 -3 ----------- Run | Yrd Mat Sub Scr Fac Was Fac Low Low Fac Was Fac Ext Fac Upp Upp Zhi Pro Res Qua Frg Matter Collected 21402 | 260 347 396 50 400 20 143 205 26 82 242 113 199 274 112 10 58 . 47 24 18394 Remotely . | . . . . . . . . . . . . . . . . . . . . . Salvage Created 33615 | 87 473 328 . 1086 . 723 153 . 307 407 440 852 232 72 . 177 . 204 24 28050 Parts 1234 | 3 31 24 . 52 . 31 6 . 26 . 30 28 18 . . 1 . 6 1 977 Haulers Intercepted 7 | . 2 . . . . 1 1 . . . 1 . . . . . . 1 . 1 Recyclers Shooed 3 | . 1 . . . . . . . . . 1 . . . . . . . 1 . Parts Field Recycled . | . . . . . . . . . . . . . . . . . . . . . Retrieved Matter . | . . . . . . . . . . . . . . . . . . . . . Parts Self-Destructed 39 | . . 15 . . . . 18 5 . . . . . . . 1 . . . . Prevented 3 | . . . . . . . . 3 . . . . . . . . . . . . Parts Restored . | . . . . . . . . . . . . . . . . . . . . . Kills | -11 -10 -10 -8 -6 -6 -6 -6 -6 -5 -5 -5 -5 -4 -4 -4 -4 -3 -3 -3 -3 ------- Run | Yrd Mat Sub Scr Fac Was Fac Low Low Fac Was Fac Ext Fac Upp Upp Zhi Pro Res Qua Frg Combat Hostiles Destroyed 557 | . 13 8 . 13 . 7 5 . . 2 2 10 5 . . . . . . 492 Melee 9 | . . . . 1 . 1 . . . . 1 2 . . . . . . . 4 Guns 291 | . 1 3 . . . . . . . . . . . . . . . . . 287 Cannons 212 | . 8 4 . 9 . 1 . . . 1 1 1 . . . . . . . 187 AOE 40 | . 3 1 . 2 . 4 5 . . 1 . 7 5 . . . . . . 12 Classes Destroyed 27 | 1 5 2 . 4 . . . . . 1 2 2 1 . . . . . . 9 Worker 24 | . . . . 6 . 4 . . 5 . 3 1 4 . . . . . 1 . Builder 12 | . 1 . . 1 . 2 . . 3 . 2 2 . . . . . 1 . . Tunneler 4 | . . . . 1 . . . . 1 . 1 . 1 . . . . . . . Hauler 8 | . 2 . . . . 1 1 . . . 1 . . . . . . 1 . 2 Recycler 12 | 1 . . . 3 . 3 . . 1 . . 3 . . . . . 1 . . Mechanic 11 | . . . . . . . . . . . . . 1 . . . . . . 10 Operator 3 | . . . . . . . . . . . 2 . . . . . . . . 1 Drone 24 | . . . . . . . . . . . . . . . . . . . . 24 Watcher 6 | . 3 . . 1 . 1 . . . . . . 1 . . . . . . . Swarmer 64 | . 3 1 . 4 . 1 . . . . . . 5 . . . . . . 50 Saboteur 15 | . . . . . . . . . . . . . . . . . . . . 15 Grunt 111 | . 10 2 . 4 . 5 5 . . . 1 7 . . . . . . . 77 Brawler 23 | . . . . . . . . . . . . 1 . . . . . . . 22 Duelist 25 | . . . . . . . . . . . . . . . . . . . . 25 Protector 43 | . . . . . . . . . . . . . . . . . . . . 43 Sentry 8 | . . . . 2 . . . . . . . 2 . . . . . . . 4 Hunter 39 | . . . . . . . . . . . 1 . . . . . . . . 38 Programmer 60 | . . . . 3 . 1 . . . . . . . . . . . . . 56 Compactor 2 | . . . . . . . . . . 2 . . . . . . . . . . Hotshot 3 | . . . . . . . . . . . . . . . . . . . . 3 Decapitator 1 | . . . . . . . . . . . . . . . . . . . . 1 Overlord 1 | . . . . . . . . . . . . . . . . . . . . 1 Striker 55 | . . . . . . . . . . . . . . . . . . . . 55 Executioner 73 | . . . . . . . . . . . . . . . . . . . . 73 Artisan 1 | . . 1 . . . . . . . . . . . . . . . . . . Subdweller 5 | . . 5 . . . . . . . . . . . . . . . . . . Elite 2 | . . . . . . . . . . . . . . . . . . . . 2 Scrapoid 6 | . . . . . . . . . . . . . . . . . . . . 6 Butcher 1 | . . . . . . . . . . . . 1 . . . . . . . . Best Kill Streak 17 | 1 4 2 . 5 . 12 6 . 3 2 3 7 5 . . . . 2 1 17 Combat Bots Only 17 | . 3 2 . 5 . 3 5 . . 2 1 7 5 . . . . . . 17 Max Kills in Single Turn 5 | 1 2 1 . 2 . 2 2 . 1 1 2 2 5 . . . . 2 1 4 Gunslinging 2 | . . . . . . . . . . . . . . . . . . . . 2 Exploded 5 | . 1 1 . 2 . 1 2 . . 1 . 2 5 . . . . . . 3 Melee 1 | . . . . 1 . 1 . . . . 1 1 . . . . . . . 1 Uniques/NPCs Destroyed . | . . . . . . . . . . . . . . . . . . . . . Combat | -11 -10 -10 -8 -6 -6 -6 -6 -6 -5 -5 -5 -5 -4 -4 -4 -4 -3 -3 -3 -3 -------- Run | Yrd Mat Sub Scr Fac Was Fac Low Low Fac Was Fac Ext Fac Upp Upp Zhi Pro Res Qua Frg Hostile Shots Fired 1471 | . 52 36 . 94 . 24 9 21 55 14 18 33 82 4 . . 7 41 33 948 Missed 708 | . 12 11 . 32 . 14 7 13 31 7 4 15 39 4 . . 6 27 15 471 Hits 763 | . 40 25 . 62 . 10 2 8 24 7 14 18 43 . . . 1 14 18 477 Melee 7 | . . . . . . . . . . . . . . . . . . . . 7 Projectile 756 | . 40 25 . 62 . 10 2 8 24 7 14 18 43 . . . 1 14 18 470 AOE 2 | . . . . . . . . . 1 . . . . . . . . . . 1 Critical Strikes 37 | . . 2 . 1 . . . . 2 . . 2 3 . . . . 1 1 25 Actively Blocked 2 | . . . . . . . . . . . . . . . . . . . . 2 Part Disruptions 3 | . . . . . . . . . . . . . 1 . . . . . 2 . Actively Blocked 1 | . . . . . . . . . . . . . . . . . . . 1 . Damage Taken 16618 | . 469 482 . 794 . 214 36 75 824 136 275 416 795 . . . 28 263 435 11376 Core 1641 | . 68 68 . 32 . . 18 . 74 12 19 83 66 . . . . 24 57 1120 Absorbed by Shields 3497 | . . . . . . . . . . . . . . . . . . . . 3497 Redirected to Shielding 454 | . . . . 47 . 48 . 28 . . . . 53 . . . . 19 . 259 Regen/Repaired (Parts) 461 | . 35 . . . . . . . . 32 . . 24 . . . . . 169 201 Core Remaining (%) 69 | 100 . . 45 . . . . 94 . . . 81 . . . . 94 . . 5 Volleys Fired 1022 | 1 49 48 . 38 5 10 12 . 15 9 6 11 10 . . . 6 6 1 795 Largest 4 | 2 2 2 . 3 2 2 1 . 1 1 1 1 1 . . . 1 1 1 4 Hottest 364 | 80 80 120 . 200 175 175 85 . 98 98 120 120 120 . . . 120 120 113 364 Shots Fired 2989 | 2 93 95 . 96 7 13 12 . 14 9 6 11 10 . . . 6 6 1 2608 Gun 1425 | 2 34 28 . . . . . . . . . . . . . . . . . 1361 Cannon 1514 | . 56 66 . 96 7 8 7 . 13 1 6 4 7 . . . 6 6 1 1230 Launcher 49 | . 3 1 . . . 5 5 . . 8 . 7 3 . . . . . . 17 Special 1 | . . . . . . . . . 1 . . . . . . . . . . . Kinetic 2709 | . 56 66 . . . . . . . . . . . . . . . . . 2587 Thermal 194 | . . 28 . 96 7 8 7 . 13 1 6 4 7 . . . 6 6 1 4 Explosive 49 | . 3 1 . . . 5 5 . . 8 . 7 3 . . . . . . 17 Electromagnetic 36 | 2 34 . . . . . . . . . . . . . . . . . . . Robot Hit Streak 87 | 2 12 20 . 10 9 10 20 . 21 26 28 11 . . . . . . . 87 Robot Miss Streak 7 | . 3 2 . 5 2 . . . . . 1 . . . . . . . . 7 Penetration Max 2 | . . . . . . . . . . . . . . . . . . . . 2 Secondary Targets 92 | . . . . . . . . . . . . . . . . . . . . 92 Max Gunslinging Chain 3 | . . . . . . . . . . . . . . . . . . . . 3 Shots Hit Robots 2010 | 2 58 57 . 62 4 20 10 . 13 5 9 29 15 2 . 8 . 1 2 1713 Core Hits 1118 | 1 23 19 . 30 1 26 15 . 4 6 18 34 10 . . 2 . 2 1 926 Critical Kills 81 | . . 1 . 2 . 1 . . . . . . . . . . . . . 77 Critical Parts Destroyed 76 | . . . . . . . . . . . . . . . . . . . . 76 Critical Strikes 280 | . 2 3 . 2 . 1 . . . . . . . . . . . . . 272 Meltdown 3 | . . . . 2 . 1 . . . . . . . . . . . . . . Destroy 164 | . . 1 . . . . . . . . . . . . . . . . . 163 Blast 112 | . 1 2 . . . . . . . . . . . . . . . . . 109 Corrupt 1 | . 1 . . . . . . . . . . . . . . . . . . . Melee Attacks 229 | . . . . 24 2 15 1 1 48 . 19 24 42 4 3 8 2 18 12 6 Impact . | . . . . . . . . . . . . . . . . . . . . . Slashing 228 | . . . . 24 2 15 1 1 48 . 19 24 41 4 3 8 2 18 12 6 Piercing . | . . . . . . . . . . . . . . . . . . . . . Sneak Attacks 57 | . . . . 9 . 9 . . 10 . 5 8 13 . . . . 1 2 . Combat Hostiles 3 | . . . . 1 . 1 . . . . 1 . . . . . . . . . Follow-up Attacks . | . . . . . . . . . . . . . . . . . . . . . Damage Inflicted 108295 | 62 1286 1203 . 2660 227 1915 1340 . 827 1776 797 2531 1511 163 . 623 . 550 159 90665 Guns 48920 | 15 385 316 . . . . . . . . . . . . . . . . . 48204 Cannons 41506 | . 712 836 . 1473 209 124 220 . . 33 131 126 . . . . . . . 37642 Explosions 11729 | 47 177 51 . 453 . 1031 1120 . . 1743 232 1356 510 . . . . 464 . 4545 Melee 5854 | . . . . 734 18 760 . . 827 . 434 1049 1001 163 . 623 . 86 159 . Ramming 286 | . 12 . . . . . . . . . . . . . . . . . . 274 Kinetic 87394 | . 712 836 . . . . . . . . . . . . . . . . . 85846 Thermal 3132 | 47 . 316 . 1926 209 124 220 . . 33 131 126 . . . . . . . . Explosive 10879 | . 177 51 . . . 913 1120 . . 1743 . 1356 510 . . . . 464 . 4545 Electromagnetic 750 | 15 385 . . . . 118 . . . . 232 . . . . . . . . . Impact . | . . . . . . . . . . . . . . . . . . . . . Slashing 5854 | . . . . 734 18 760 . . 827 . 434 1049 1001 163 . 623 . 86 159 . Piercing . | . . . . . . . . . . . . . . . . . . . . . Highest Corruption 11 | . . . . . 10 11 11 11 5 . 4 4 8 8 8 8 8 1 3 8 Average Corruption 4 | . . . . . 10 10 11 11 4 . 3 4 3 8 8 8 8 1 1 3 Corruption Purged 5 | . . . . . . . . . 5 . . . . . . . . . . . Corruption Blocked . | . . . . . . . . . . . . . . . . . . . . . Effects 250 | . . . . . 6 12 12 9 18 . 3 13 17 7 5 1 5 . 2 140 Message Errors 52 | . . . . . . 4 3 5 6 . . 2 5 1 3 . . . . 23 Matter Fused 49 | . . . . . . 1 3 1 2 . 1 1 7 1 . 1 1 . 1 29 Heat Flow Errors 26 | . . . . . 3 2 2 1 1 . 1 1 2 3 . . . . . 10 Energy Discharges 32 | . . . . . 2 1 . 1 3 . . 4 1 1 1 . . . . 18 Parts Rejected 5 | . . . . . . 1 . . . . . . . . . . . . . 4 Parts Fused 1 | . . . . . . . . . . . . . . . 1 . . . . . Data Loss (minor) 30 | . . . . . . 1 1 1 2 . 1 2 2 1 . . 4 . 1 14 Data Loss (major) 16 | . . . . . . . . . 2 . . 1 . . . . . . . 13 Misfires 2 | . . . . . . 1 1 . . . . . . . . . . . . . Alerts 12 | . . . . . . . 1 . 1 . . 2 . . . . . . . 8 Misdirections 2 | . . . . . 1 1 . . . . . . . . . . . . . . Weapon Failures 23 | . . . . . . . 1 . 1 . . . . . . . . . . 21 Overload Shots . | . . . . . . . . . . . . . . . . . . . . . Overflow Damage 3304 | . 21 . . 220 . 228 18 . 283 . 55 144 320 125 . 187 . 105 43 1555 Projectiles 1434 | . 9 . . 42 . . . . . . 15 . . . . . . . . 1368 Explosions 412 | . 12 . . 55 . 64 18 . . . . 20 . . . . . 105 . 138 Melee 1458 | . . . . 123 . 164 . . 283 . 40 124 320 125 . 187 . . 43 49 Knockbacks 97 | . 13 6 . . . . . . . . . . . . . . . . . 78 Impact 2 | . 1 . . . . . . . . . . . . . . . . . . 1 Kinetic 89 | . 9 6 . . . . . . . . . . . . . . . . . 74 Secondary 6 | . 3 . . . . . . . . . . . . . . . . . . 3 Self-Inflicted Damage 154 | . . 9 . 34 . . . . . . . . 17 . . . . . . 94 Shots 4 | . . 1 . 1 . . . . . . . . 1 . . . . . . 1 Rammed 1 | . 1 . . . . . . . . . . . . . . . . . . . Targets Rammed 10 | . 1 . . . . . . . . . . . . . . . . . . 9 Kicked 9 | . . . . . . . . . . . . . . . . . . . . 9 Crushed . | . . . . . . . . . . . . . . . . . . . . . Highest Temperature 440 | 18 210 45 . 135 292 259 440 225 116 67 247 269 407 307 229 125 152 160 . 407 Average Temperature 80 | 12 72 19 . 43 147 74 138 109 48 15 76 95 68 69 74 65 67 74 . 100 Received Heat Transfer 1207 | . 240 63 . 192 . 18 18 24 30 27 27 105 21 . . . . . 9 433 Effects 11 | . . . . . . . 1 . . . . 1 4 . 1 . . . . 4 Shutdowns 1 | . . . . . . . . . . . . . 1 . . . . . . . Energy Bleed 2 | . . . . . . . . . . . . 1 . . 1 . . . . . Interference 7 | . . . . . . . . . . . . . 3 . . . . . . 4 Matter Decay 1 | . . . . . . . 1 . . . . . . . . . . . . . Siege Activations . | . . . . . . . . . . . . . . . . . . . . . Martial Activations . | . . . . . . . . . . . . . . . . . . . . . Shielding Activations . | . . . . . . . . . . . . . . . . . . . . . Robots Disrupted . | . . . . . . . . . . . . . . . . . . . . . Combat Hostiles . | . . . . . . . . . . . . . . . . . . . . . Robots Corrupted 4 | . 2 . . . . . . . . . . . . . . . . . . 2 Combat Hostiles 1 | . 1 . . . . . . . . . . . . . . . . . . . Parts Fried 7 | . 6 . . . . . . . . . . . . . . . . . . 1 Impact Corruptions 5 | . . . . . . . . . . . . . . . . . . . . 5 Robots Melted 3 | . . . . 2 . 1 . . . . . . . . . . . . . . Combat Hostiles 2 | . . . . 1 . 1 . . . . . . . . . . . . . . Parts Melted 19 | . . 1 . 8 . . . . . . . 1 . . . . . . . 9 Heat Transferred 3487 | . . 375 . 2211 259 148 222 . . 50 111 111 . . . . . . . . Parts Sabotaged . | . . . . . . . . . . . . . . . . . . . . . Parts Stolen . | . . . . . . . . . . . . . . . . . . . . . Parts Stripped . | . . . . . . . . . . . . . . . . . . . . . Power Chain Reactions 2 | 1 . . . . . . . . . . 1 . . . . . . . . . Alert | -11 -10 -10 -8 -6 -6 -6 -6 -6 -5 -5 -5 -5 -4 -4 -4 -4 -3 -3 -3 -3 ------- Run | Yrd Mat Sub Scr Fac Was Fac Low Low Fac Was Fac Ext Fac Upp Upp Zhi Pro Res Qua Frg Maximum Alert Level 5 | . . . . 1 . 1 . . . . 3 1 1 . . . . . . 5 Low Security (%) 49 | 100 100 . . 97 100 62 . . 100 100 11 27 94 . . . . 100 100 5 Level 1 7 | . . . . 2 . 37 . . . . 33 72 5 . . . . . . 2 Level 2 3 | . . . . . . . . . . . 40 . . . . . . . . 3 Level 3 3 | . . . . . . . . . . . 13 . . . . . . . . 5 Level 4 1 | . . . . . . . . . . . . . . . . . . . . 2 Level 5 35 | . . . . . . . . . . . . . . . . . . . . 79 High Security . | . . . . . . . . . . . . . . . . . . . . . Max Security . | . . . . . . . . . . . . . . . . . . . . . Peak Influence 10891 | 5 145 . . 207 66 276 . . 122 54 867 320 294 . . . . 187 65 10891 Initial 149 | . 3 . . . 66 18 . . 45 . . 149 107 . . . . 16 40 24 Average 2463 | . 49 . . 117 48 126 . . 27 11 407 244 46 . . . . 53 44 5351 Influence Increases 17968 | 5 430 130 . 728 30 743 105 105 507 98 1382 414 633 50 . 15 45 336 135 12077 Destroy 0b10 Robot/C 10240 | . 260 60 . 280 . 300 100 . 20 . 300 220 100 . . . . . . 8600 Destroy 0b10 Robot/NC 800 | 5 30 . . 60 . 65 5 . 50 . 85 30 35 5 . 15 . 15 5 395 Destroy Leader 1628 | . 60 10 . 72 . 64 . . . . 88 30 12 . . . . 2 . 1290 Allied During Kill 572 | . . . . . . 139 . . . . 359 40 . . . . . . . 34 Successful Hack 175 | . 10 . . 5 . . . . 32 . 21 5 22 . . . . 37 41 2 Select Force Hacks 30 | . 30 . . . . . . . . . . . . . . . . . . . Disable Machine 915 | . 30 . . 90 . 75 . . . . 330 15 90 . . . . 15 45 225 Anti-Garrison Action 150 | . . . . . . . . . . . . . . . . . . . . 150 Destroy Structure 1253 | . 10 . . 56 30 85 . . 90 98 154 74 74 . . . . 102 14 466 Partial Spotted 165 | . . . . . . 15 . . 30 . 15 . 30 . . . . . . 75 Lose Combat Pursuer 2040 | . . 60 . 165 . . . 105 285 . 30 . 270 45 . . 45 165 30 840 Influence Decreases 7077 | . 362 173 30 538 194 538 227 141 578 100 1076 501 560 269 73 10 25 289 162 1231 Entered New Map 798 | . 2 36 30 . 124 8 87 21 28 2 . 157 112 109 15 . 5 9 32 21 Time Decay 4220 | . 350 110 . 458 50 144 140 120 482 80 336 254 418 160 58 10 20 130 130 770 Lost Part 507 | . 10 27 . . . . . . 10 . . 10 30 . . . . . . 420 Lost Ally 653 | . . . . 80 20 110 . . 35 18 290 80 . . . . . . . 20 Purge Threat 899 | . . . . . . 276 . . 23 . 450 . . . . . . 150 . . Squads Dispatched 73 | . 1 . . 8 . 7 . . 18 . 9 2 16 . . . . 5 1 6 Investigation 35 | . 1 . . 6 . 4 . . 5 . 5 1 9 . . . . 2 . 2 Extermination 16 | . . . . 2 . 1 . . 5 . 2 . 4 . . . . 1 1 . Reinforcement 20 | . . . . . . 2 . . 6 . 2 1 3 . . . . 2 . 4 Assault 2 | . . . . . . . . . 2 . . . . . . . . . . . Garrison . | . . . . . . . . . . . . . . . . . . . . . Intercept . | . . . . . . . . . . . . . . . . . . . . . Searches Triggered . | . . . . . . . . . . . . . . . . . . . . . Construction Impeded 5 | . . . . . . 1 . . 1 . 1 1 . . . . . 1 . . Haulers Reinforced 1 | . . . . . . 1 . . . . . . . . . . . . . . Active Scanning Responses . | . . . . . . . . . . . . . . . . . . . . . Cargo Convoy Interrupts 2 | . . . . 1 . . . . 1 . . . . . . . . . . . Stealth | -11 -10 -10 -8 -6 -6 -6 -6 -6 -5 -5 -5 -5 -4 -4 -4 -4 -3 -3 -3 -3 --------- Run | Yrd Mat Sub Scr Fac Was Fac Low Low Fac Was Fac Ext Fac Upp Upp Zhi Pro Res Qua Frg Distress Signals 32 | . 2 . . 2 . . . . 2 . 1 . 3 . . . . 2 1 19 Communications Jammed . | . . . . . . . . . . . . . . . . . . . . . Distress Signals . | . . . . . . . . . . . . . . . . . . . . . Times Spotted 1244 | . 19 10 . 32 5 18 6 6 25 10 20 14 42 3 . . 4 17 8 1005 Peak Tracking Total 18 | . 3 2 . 11 4 5 5 4 7 4 4 6 12 3 . . 3 14 5 18 Tactical Retreats 79 | . . 2 . 6 . . . 3 12 2 1 . 7 1 . . 2 5 1 37 Traps | -11 -10 -10 -8 -6 -6 -6 -6 -6 -5 -5 -5 -5 -4 -4 -4 -4 -3 -3 -3 -3 ------- Run | Yrd Mat Sub Scr Fac Was Fac Low Low Fac Was Fac Ext Fac Upp Upp Zhi Pro Res Qua Frg Traps Triggered 14 | . . . . 1 . . . . 4 . 1 3 3 . . . . . . 2 Indirectly . | . . . . . . . . . . . . . . . . . . . . . Trap Hack Attempts . | . . . . . . . . . . . . . . . . . . . . . Triggered . | . . . . . . . . . . . . . . . . . . . . . Disarmed . | . . . . . . . . . . . . . . . . . . . . . Reprogrammed 1 | . . . . . . . . . . . . . . . . . . 1 . . Reused . | . . . . . . . . . . . . . . . . . . . . . Traps Extracted . | . . . . . . . . . . . . . . . . . . . . . Installed . | . . . . . . . . . . . . . . . . . . . . . Triggered . | . . . . . . . . . . . . . . . . . . . . . Objects Rigged 1 | . . . . . . . . . . . . . . . . . . 1 . . Exploded 1 | . . . . . . . . . . . . . . . . . . 1 . . Machines | -11 -10 -10 -8 -6 -6 -6 -6 -6 -5 -5 -5 -5 -4 -4 -4 -4 -3 -3 -3 -3 ---------- Run | Yrd Mat Sub Scr Fac Was Fac Low Low Fac Was Fac Ext Fac Upp Upp Zhi Pro Res Qua Frg Machines Disabled 65 | . 2 1 . 6 . 5 . . . . 22 1 6 . 1 . . 1 3 17 Max in Single Turn 8 | . 1 1 . 1 . 1 . . . . 8 1 2 . 1 . . 1 1 2 Garrison Access 3 | . . . . 1 . . . . 1 . . . . . . . . . . 1 Machines Repaired . | . . . . . . . . . . . . . . . . . . . . . Machines Dismantled . | . . . . . . . . . . . . . . . . . . . . . Machines Sabotaged . | . . . . . . . . . . . . . . . . . . . . . Overloaded Fab Kills . | . . . . . . . . . . . . . . . . . . . . . Hacking | -11 -10 -10 -8 -6 -6 -6 -6 -6 -5 -5 -5 -5 -4 -4 -4 -4 -3 -3 -3 -3 --------- Run | Yrd Mat Sub Scr Fac Was Fac Low Low Fac Was Fac Ext Fac Upp Upp Zhi Pro Res Qua Frg Machines Accessed 108 | . 8 1 1 13 . 6 1 2 17 . 14 4 18 . . 3 . 7 6 7 Terminals 45 | . 5 . . 3 . 2 . . 6 . 7 4 6 . . . . 5 3 4 Fabricators 8 | . . . . 2 . . . . 1 . 1 . 3 . . . . 1 . . Repair Stations 5 | . 1 . . . . . . . 2 . . . 1 . . . . . 1 . Recycling Units 33 | . 2 . . 6 . 4 . . 6 . 5 . 7 . . . . . . 3 Scanalyzers 6 | . . . . 1 . . . . 2 . 1 . . . . . . 1 1 . Garrison Access 3 | . . . . 1 . . . . . . . . 1 . . . . . 1 . Total Hacks 237 | . 18 1 6 26 . 14 1 6 35 . 33 6 29 . . 13 . 20 16 13 Successful 131 | . 10 1 6 9 . 7 1 6 13 . 17 2 15 . . 13 . 13 11 7 Failed 105 | . 8 . . 16 . 7 . . 22 . 16 4 14 . . . . 7 5 6 Catastrophic 15 | . . . . 4 . 1 . . 2 . 2 1 3 . . . . 1 . 1 Database Lockouts 1 | . . . . 1 . . . . . . . . . . . . . . . . Manual 116 | . 8 . . 11 . 8 . . 20 . 28 3 15 . 1 . . 8 5 9 Terminals 108 | . 11 . . 6 . 5 . . 17 . 20 6 12 . . . . 13 10 8 Fabricators 16 | . . . . 4 . . . . 2 . 2 . 6 . . . . 2 . . Repair Stations 8 | . 2 . . . . . . . 3 . . . 1 . . . . . 2 . Recycling Units 58 | . 5 . . 12 . 9 . . 9 . 10 . 8 . . . . . . 5 Scanalyzers 15 | . . . . 3 . . . . 4 . 1 . . . . . . 5 2 . Garrison Access 5 | . . . . 1 . . . . . . . . 2 . . . . . 2 . Terminal Hacks 57 | . 3 1 6 . . 3 1 6 2 . 5 2 3 . . 13 . 4 5 3 Record 6 | . . . . . . . . 5 . . . . . . . 1 . . . . Part Schematic 4 | . . . . . . . . . . . . . . . . 4 . . . . Robot Analysis 11 | . 1 . 6 . . . . . . . . . . . . 4 . . . . Prototype ID Bank 5 | . . . . . . . . . 1 . . . . . . 4 . . . . Open Door 4 | . . . . . . . 1 1 . . . 2 . . . . . . . . Branch Access Points 4 | . 1 . . . . 1 . . . . 1 . . . . . . 1 . . Machine Index 1 | . . . . . . . . . . . . . . . . . . . . 1 Recycling Unit Index 1 | . . . . . . . . . . . . . 1 . . . . . . . Alert Level 3 | . . . . . . . . . . . 1 . 1 . . . . . 1 . Unreport Threat 7 | . . . . . . 2 . . 1 . 3 . . . . . . 1 . . Locate Traps 7 | . . . . . . . . . . . . . 1 . . . . 1 3 2 Reprogram Traps 1 | . . . . . . . . . . . . . . . . . . 1 . . Zone Layout 2 | . 1 . . . . . . . . . . . . . . . . . 1 . Proto ID Catalog 1 | . . 1 . . . . . . . . . . . . . . . . . . Fabricator Hacks 3 | . . . . 1 . . . . . . . . 1 . . . . 1 . . Network Status 1 | . . . . . . . . . . . . . . . . . . 1 . . Build 2 | . . . . 1 . . . . . . . . 1 . . . . . . . Repair Station Hacks 4 | . 2 . . . . . . . . . . . . . . . . . 2 . Scan Component 2 | . 1 . . . . . . . . . . . . . . . . . 1 . Repair 2 | . 1 . . . . . . . . . . . . . . . . . 1 . Recycling Unit Hacks 5 | . 2 . . 1 . . . . . . 2 . . . . . . . . . Retrieve Components 5 | . 2 . . 1 . . . . . . 2 . . . . . . . . . Scanalyzer 9 | . . . . 1 . . . . 2 . 1 . . . . . . 4 1 . Retrieve Study 9 | . . . . 1 . . . . 2 . 1 . . . . . . 4 1 . Garrison Access Hacks 1 | . . . . 1 . . . . . . . . . . . . . . . . Seal Access 1 | . . . . 1 . . . . . . . . . . . . . . . . Unauthorized Hacks 52 | . 3 . . 5 . 4 . . 9 . 9 . 11 . . . . 4 3 4 Terminals 19 | . 2 . . . . . . . 3 . 4 . 2 . . . . 3 3 2 Track 1 | . . . . . . . . . . . . . . . . . . . 1 . Assimilate 5 | . . . . . . . . . 1 . 2 . . . . . . 1 . 1 Botnet 11 | . 2 . . . . . . . 2 . 2 . 2 . . . . 1 1 1 Detonate 1 | . . . . . . . . . . . . . . . . . . 1 . . Operators 1 | . . . . . . . . . . . . . . . . . . . 1 . Fabricators 4 | . . . . . . . . . 1 . . . 2 . . . . 1 . . Liberate 4 | . . . . . . . . . 1 . . . 2 . . . . 1 . . Repair Stations 1 | . . . . . . . . . . . . . 1 . . . . . . . Patch 1 | . . . . . . . . . . . . . 1 . . . . . . . Recycling Units 28 | . 1 . . 5 . 4 . . 5 . 5 . 6 . . . . . . 2 Tunnel 1 | . 1 . . . . . . . . . . . . . . . . . . . Fedlink 26 | . . . . 5 . 4 . . 5 . 5 . 6 . . . . . . 1 Scraphulk 1 | . . . . . . . . . . . . . . . . . . . . 1 Scanalyzers . | . . . . . . . . . . . . . . . . . . . . . Garrison Access . | . . . . . . . . . . . . . . . . . . . . . Data Cores Recovered 2 | . . . . . . . . . . . 2 . . . . . . . . . Used 1 | . . . . . . . . . . . 1 . . . . . . . . . Hacking Detections 69 | . 5 . . 8 . 4 . . 13 . 9 3 11 . . . . 5 5 6 Full Trace Events 4 | . . . . 1 . . . . . . . . 1 . . . . 2 . . Feedback Events . | . . . . . . . . . . . . . . . . . . . . . Feedback Blocked . | . . . . . . . . . . . . . . . . . . . . . Robot Schematics Acquired . | . . . . . . . . . . . . . . . . . . . . . Robots Built 4 | . . . . 4 . . . . . . . . . . . . . . . . Authchips . | . . . . . . . . . . . . . . . . . . . . . Time 134 | . . . . 134 . . . . . . . . . . . . . . . . Total Robot Build Rating 16 | . . . . 16 . . . . . . . . . . . . . . . . Part Schematics Acquired 4 | . . . . . . . . . . . . . . . . 4 . . . . Parts Built 2 | . . . . . . . . . . . . . 2 . . . . . . . Authchips . | . . . . . . . . . . . . . . . . . . . . . Time 69 | . . . . . . . . . . . . . 69 . . . . . . . Total Part Build Rating 18 | . . . . . . . . . . . . . 18 . . . . . . . Part Studies Acquired 9 | . . . . 1 . . . . 2 . 1 . . . . . . 4 1 . Parts Repaired 2 | . 1 . . . . . . . . . . . . . . . . . 1 . Time 64 | . 36 . . . . . . . . . . . . . . . . . 28 . Parts Recycled . | . . . . . . . . . . . . . . . . . . . . . Recycled Matter . | . . . . . . . . . . . . . . . . . . . . . Retrieved Matter . | . . . . . . . . . . . . . . . . . . . . . Retrieved Components 15 | . 1 . . 9 . . . . . . 5 . . . . . . . . . Parts Scanalyzed . | . . . . . . . . . . . . . . . . . . . . . Part Schematics Acquired . | . . . . . . . . . . . . . . . . . . . . . Parts Damaged . | . . . . . . . . . . . . . . . . . . . . . Bothacking | -11 -10 -10 -8 -6 -6 -6 -6 -6 -5 -5 -5 -5 -4 -4 -4 -4 -3 -3 -3 -3 ------------ Run | Yrd Mat Sub Scr Fac Was Fac Low Low Fac Was Fac Ext Fac Upp Upp Zhi Pro Res Qua Frg Used RIF Installer . | . . . . . . . . . . . . . . . . . . . . . Robots Hacked 2 | . . . . . . . . . 1 . . . 1 . . . . . . . Non-combat 2 | . . . . . . . . . 1 . . . 1 . . . . . . . Combat . | . . . . . . . . . . . . . . . . . . . . . Robot Hacks Applied 2 | . . . . . . . . . 1 . . . 1 . . . . . . . find_chute 1 | . . . . . . . . . 1 . . . . . . . . . . . find_recycling 1 | . . . . . . . . . . . . . 1 . . . . . . . Relay Couplers Released 4 | . . . . . . . . . 3 . . . . . . . . . . 1 Machine Destruction 4 | . . . . . . . . . 3 . . . . . . . . . . 1 Fabnet Peak Effective % . | . . . . . . . . . . . . . . . . . . . . . Robots Rewired 6 | . . . . . . . . . . . . 6 . . . . . . . . Allies Hacked 2 | . . . . . . . . . . . 2 . . . . . . . . . Hacks Repelled . | . . . . . . . . . . . . . . . . . . . . . Allies | -11 -10 -10 -8 -6 -6 -6 -6 -6 -5 -5 -5 -5 -4 -4 -4 -4 -3 -3 -3 -3 -------- Run | Yrd Mat Sub Scr Fac Was Fac Low Low Fac Was Fac Ext Fac Upp Upp Zhi Pro Res Qua Frg Total Allies 57 | . . . . 4 19 . . . 4 19 1 9 . . . . . . . 1 Largest Group 19 | . . . . 4 19 6 . . 3 19 15 7 . . . . . . . 1 Highest-Rated Group 702 | . . . . 48 702 198 . . 90 684 584 182 . . . . . . . 139 Highest-Rated Ally 139 | . . . . 12 50 50 . . 30 50 50 31 . . . . . . . 139 Initial UFD Resources 113 | . . . . 23 43 43 51 51 55 75 75 85 88 110 110 110 113 113 113 113 Total Orders . | . . . . . . . . . . . . . . . . . . . . . Ally Attacks 305 | . . . . 20 63 55 . . 8 39 87 18 . . . . . . . 15 Total Damage 9550 | . . . . 275 1849 1516 . . 166 1486 2907 336 . . . . . . . 1015 Kills 52 | . . . . 1 8 10 . . 1 5 21 1 . . . . . . . 5 Allies Corrupted 4 | . . . . . . . . . . . 4 . . . . . . . . . Allies Melted 2 | . . . . . . . . . . . . . . . . . . . . 2 Intel | -11 -10 -10 -8 -6 -6 -6 -6 -6 -5 -5 -5 -5 -4 -4 -4 -4 -3 -3 -3 -3 ------- Run | Yrd Mat Sub Scr Fac Was Fac Low Low Fac Was Fac Ext Fac Upp Upp Zhi Pro Res Qua Frg Active Infowar (turns) 15088 | . . 6 . 969 110 320 287 253 1771 335 805 557 1345 335 278 76 171 271 264 6935 Optics 13139 | . . 6 . . . . . . 1764 335 805 557 1342 335 278 76 171 271 264 6935 Sensors 8193 | . . . . 969 110 320 287 253 1655 310 805 557 1345 335 278 74 171 271 263 190 Robot Analysis Total 11 | . 1 . 6 . . . . . . . . . . . . 4 . . . . Derelict Logs Recovered 9 | . . 2 5 . . . . 1 . . . . . 1 . . . . . . Drone Launches . | . . . . . . . . . . . . . . . . . . . . . Drone Recoveries . | . . . . . . . . . . . . . . . . . . . . . Exploration | -11 -10 -10 -8 -6 -6 -6 -6 -6 -5 -5 -5 -5 -4 -4 -4 -4 -3 -3 -3 -3 ------------- Run | Yrd Mat Sub Scr Fac Was Fac Low Low Fac Was Fac Ext Fac Upp Upp Zhi Pro Res Qua Frg Turns Passed 22708 | 74 1317 2217 3450 1435 113 320 287 253 1771 335 805 557 1345 335 278 76 171 271 264 7034 Spaces Moved 21604 | 52 727 1230 1738 1431 149 488 437 398 2606 439 1357 603 2165 651 558 150 347 618 585 4875 Core 32 | 14 . . . . . . . . . . . . . . . . . . . 18 Treads 3013 | . 591 1230 1191 1 . . . . . . . . . . . . . . . . Legs 4363 | 38 136 . . . . . . . . . . . . . . . . . . 4189 Wheels 953 | . . . 547 406 . . . . . . . . . . . . . . . . Hover 13063 | . . . . 1024 149 488 437 398 2606 439 1357 603 2165 651 558 150 347 618 585 488 Flight 180 | . . . . . . . . . . . . . . . . . . . . 180 Fastest Speed 17 | 50 120 160 160 48 48 43 43 43 33 33 33 33 30 34 34 30 17 17 17 17 Average Speed 74 | 101 152 160 188 66 48 44 43 43 42 44 42 42 37 34 34 32 29 27 33 86 Slowest Speed 560 | 120 160 160 560 250 48 48 43 43 43 98 98 86 108 34 34 34 30 30 92 170 Overloaded Moves 650 | . . . . . . . . . 21 36 61 12 41 . . . 24 99 98 258 Propulsion Burnouts . | . . . . . . . . . . . . . . . . . . . . . Robots Hopped 2 | . . . . . . . . . . . . . . . . . . . . 2 Potential Cave-ins 1 | . . . . . . . . . . . . . . . . . . . . 1 Cave-ins Triggered . | . . . . . . . . . . . . . . . . . . . . . Exploration Rate (%) 57 | 4 96 70 86 37 80 14 63 32 47 96 37 54 61 76 63 61 67 29 67 63 Regions Visited 20 Branch Regions 11 Pre-discovered Areas 4 | . 1 . 1 1 . . . . . . . . . 1 . . . . . . Known Exits Taken 12 | . . . . . . 1 1 1 . . 1 1 1 1 1 1 1 1 1 . Unknown Exits Taken 4 | 1 1 1 1 . . . . . . . . . . . . . . . . . Scrap Searched 27 | . . 10 7 . . . 2 3 . . . . . 3 2 . . . . . Spaces Dug 199 | . . . . 17 1 3 13 1 46 . 11 2 29 2 2 . 8 23 7 34 Terrain Destroyed 837 | 4 9 3 . 60 1 34 53 1 46 57 11 50 38 2 2 . 8 70 7 381 Melee 122 | . . . . 13 1 2 1 1 35 . 10 2 23 2 2 . 2 17 6 5 Projectile 335 | . 3 . . 10 . 1 . . 11 . 1 . 6 . . . 6 6 1 290 AOE 380 | 4 6 3 . 37 . 31 52 . . 57 . 48 9 . . . . 47 . 86 Terrain Rammed . | . . . . . . . . . . . . . . . . . . . . . Walls Destroyed . | . . . . . . . . . . . . . . . . . . . . . Machines Disabled . | . . . . . . . . . . . . . . . . . . . . . Actions | -11 -10 -10 -8 -6 -6 -6 -6 -6 -5 -5 -5 -5 -4 -4 -4 -4 -3 -3 -3 -3 --------- Run | Yrd Mat Sub Scr Fac Was Fac Low Low Fac Was Fac Ext Fac Upp Upp Zhi Pro Res Qua Frg Total 26324 | 69 843 1388 1925 1814 180 561 523 477 3202 568 1561 866 2653 759 642 170 409 693 636 6385 Wait 2701 | 2 30 73 125 233 23 36 60 76 465 108 152 178 387 104 80 . 51 41 27 450 Move 21582 | 51 726 1229 1737 1431 148 487 436 397 2606 438 1356 602 2164 650 557 149 346 617 584 4871 Hop 2 | . . . . . . . . . . . . . . . . . . . . 2 Pick Up 162 | 9 16 12 43 16 . 2 2 . 9 1 3 . 6 1 . 3 . 3 1 35 Fast Attach 96 | 4 3 3 . 11 1 3 . 1 3 1 . . 6 . 1 1 . . 3 55 Attach 82 | 2 2 4 2 11 . . . . 10 3 6 3 7 . . 1 2 3 1 25 Detach 35 | . 1 1 . . . . . . 8 3 6 2 3 . 1 . 2 2 . 6 Swap 132 | . 6 5 3 19 . 3 5 1 2 4 7 . 16 . . 4 . 1 4 52 Drop 178 | . 9 13 15 31 1 5 6 1 10 1 6 . 12 . . 4 . 2 3 59 Fire 1022 | 1 49 48 . 38 5 10 12 . 15 9 6 11 10 . . . 6 6 1 795 Melee 229 | . . . . 24 2 15 1 1 48 . 19 24 42 4 3 8 2 18 12 6 Ram . | . . . . . . . . . . . . . . . . . . . . . Kick 9 | . . . . . . . . . . . . . . . . . . . . 9 Crush 1 | . 1 . . . . . . . . . . . . . . . . . . . Escape Stasis 61 | . . . . . . . . . 26 . . 26 . . . . . . . 9 Rewire 21 | . . . . . . . . . . . . 20 . . . . . . . 1 Trap . | . . . . . . . . . . . . . . . . . . . . . Miscellaneous 11 | . . . . . . . 1 . . . . . . . . . . . . 10 Route ------- -11/Scrapyard -10/Materials (discovered 5 exits: [*Mat x3] / *Min / *Sub) -10/Subcaves (discovered 3 exits: [*Mat x2] / *Scr) -8/Scraptown (discovered 2 exits: *Fac x2) -6/Factory (discovered 3 exits: *Fac / *Low x2) -6/Waste -6/Factory (discovered 2 exits: *Low x2) -6/Lower Caves -6/Lower Caves -5/Factory (discovered 2 exits: *Upp / *Ext) -5/Waste -5/Factory (discovered 6 exits: *Fac x2 / Upp x2 / *Ext x2) -5/Extension -4/Factory (discovered 3 exits: *Res / *Upp x2) -4/Upper Caves -4/Upper Caves (discovered 2 exits: *Res / *Zhi) -4/Zhirov -3/Proximity Caves -3/Research (discovered 3 exits: Arm / *Qua x2) -3/Quarantine (discovered 3 exits: [*Res] / [*Sec] / *Frg) -3/Protoforge 0bPrime History --------- Turn | Location | Event 20 | -11/Scrapyard | Discovered new exit (range 14) 75 | -11/Scrapyard | Entered Materials 315 | -10/Materials | Build established: Mutant 558 | -10/Materials | Discovered new exit (range 14) 643 | -10/Materials | Repaired Corrupted Lgt. Treads 851 | -10/Materials | Discovered new exit (range 11) 1010 | -10/Materials | Identified exit to Mines 1133 | -10/Materials | Discovered new exit (range 10) 1381 | -10/Materials | Discovered new exit (range 8) 1392 | -10/Materials | Entered Subcaves 1393 | -10/Subcaves | Approached by a straggling Scientist 1396 | -10/Subcaves | Learned Materials garrison access intel 1810 | -10/Subcaves | A swath of the cavern ceiling suddenly collapsed 1988 | -10/Subcaves | Learned Materials emergency access door positions 2656 | -10/Subcaves | Discovered new exit (range 9) 2868 | -10/Subcaves | Disturbed a concealed Subdweller 2880 | -10/Subcaves | Core integrity fell below 50% 3080 | -10/Subcaves | Discovered new exit (range 16) 3147 | -10/Subcaves | Visited 4L-MR0's lab 3167 | -10/Subcaves | Found Power Bank 3297 | -10/Subcaves | Build established: Scavenger-Mutant 3609 | -10/Subcaves | Entered Scraptown 3856 | -8/Scraptown | Heard Great Nut preacher, LISTEN AND RECITE! 3920 | -8/Scraptown | Visited UFD Registry 3920 | -8/Scraptown | Registered with UFD as "Novaroller" 4040 | -8/Scraptown | Scanned Subdweller tech in exchange for log data 4043 | -8/Scraptown | Learned Factory trap positions 4045 | -8/Scraptown | Learned Research terminal intel 4053 | -8/Scraptown | Learned location of 1 exit from Proximity Caves 4054 | -8/Scraptown | Learned location of Armory (-3) 4112 | -8/Scraptown | Discovered new exit (range 13) 4344 | -8/Scraptown | Build established: Mutant 4512 | -8/Scraptown | Visited Curators Association 4539 | -8/Scraptown | Visited Scrap Suit Storage 4594 | -8/Scraptown | Visited Analyses Database 4631 | -8/Scraptown | Visited Scrapoid Pod Storage 4647 | -8/Scraptown | Visited A0-MCA Data Center 4671 | -8/Scraptown | Visited Chapter 10 4835 | -8/Scraptown | Visited DA-N13 Charitable Foundation 4842 | -8/Scraptown | Found DCF Scrap (29 items) 4914 | -8/Scraptown | Delivered Scrap Shield to a Scientist 5697 | -8/Scraptown | Build established: Hauler-Mutant 5996 | -8/Scraptown | Visited Derelict Rescue Squad 6008 | -8/Scraptown | Found DRS Beacon 6757 | -8/Scraptown | Given a C rating by A0-MCA 6762 | -8/Scraptown | Found A0-MCA's Component Scanner 6962 | -8/Scraptown | Met Optimus 6962 | -8/Scraptown | Accepted into 0bPrime 7055 | -8/Scraptown | Discovered new exit (range 3) 7059 | -8/Scraptown | Entered Factory 7059 | -6/Factory | Evolved 8 slots: Propulsion x2, Utility x5, Weapon x1 7060 | -6/Factory | Identified exit to Lower Caves 7061 | -6/Factory | Loaded intel: 111 trap records 7369 | -6/Factory | Build established: Derelict-Tank 7866 | -6/Factory | Central database locked down 7873 | -6/Factory | Loaded intel: 8 recycling unit locations 8025 | -6/Factory | Spotted B-75 Beast 8026 | -6/Factory | Learned location of Protoforge (-3) 8064 | -6/Factory | Discovered new exit (range 5) 8067 | -6/Factory | Identified exit to Factory 8067 | -6/Factory | Discovered exit to Lower Caves (range 16) 8094 | -6/Factory | Build established: Derelict-Mutant 8401 | -6/Factory | Cargo convoy interrupted 8432 | -6/Factory | Fabricated S-27 Virus? 8487 | -6/Factory | Build established: Mutant 8494 | -6/Factory | Manually triggered Chute Trap 8494 | -6/Factory | Sucked down chute 8494 | -6/Factory | Entered Waste 8509 | -6/Waste | EMP discharged 8509 | -6/Waste | System corruption reached 10% 8509 | -6/Waste | Spotted C-40 Crusher 8524 | -6/Waste | Met Warlord forces unprepared to attack 8527 | -6/Waste | Allies destroyed C-40 Crusher 8547 | -6/Waste | Spotted C-40 Crusher 8549 | -6/Waste | Allies destroyed C-40 Crusher 8553 | -6/Waste | Spotted C-40 Crusher 8554 | -6/Waste | Spotted C-40 Crusher 8558 | -6/Waste | Spotted C-40 Crusher 8564 | -6/Waste | Allies destroyed C-40 Crusher 8566 | -6/Waste | Allies destroyed C-40 Crusher 8569 | -6/Waste | Spotted C-40 Crusher 8571 | -6/Waste | Allies destroyed C-40 Crusher 8574 | -6/Waste | Allies destroyed C-40 Crusher 8581 | -6/Waste | Discovered new exit (range 16) 8588 | -6/Waste | Identified exit to Factory 8600 | -6/Waste | Lost 3 allies 8607 | -6/Waste | Entered Factory 8607 | -6/Factory | Accompanied by 6 allies 8658 | -6/Factory | Loaded intel: 8 recycling unit locations 8927 | -6/Factory | Entered Lower Caves 8929 | -6/Lower Caves | UFD Scientist delivered a prototype 8930 | -6/Lower Caves | Found Enh. Scrap Shield 9031 | -6/Lower Caves | Activated DRS Beacon 9099 | -6/Lower Caves | Spotted B-75 Beast 9181 | -6/Lower Caves | Encountered a Warlord checkpoint 9203 | -6/Lower Caves | Discovered new exit (range 10) 9213 | -6/Lower Caves | Identified exit to Lower Caves 9214 | -6/Lower Caves | Entered another Lower Caves area 9251 | -6/Lower Caves | Attracted the attention of an 0b10 checkpoint 9256 | -6/Lower Caves | Learned Factory terminal intel 9285 | -6/Lower Caves | Entered an active Warlord outpost 9290 | -6/Lower Caves | Learned location of 1 exit from Factory 9290 | -6/Lower Caves | Learned Armory emergency access door positions 9290 | -6/Lower Caves | Learned Factory terminal intel 9290 | -6/Lower Caves | Learned Research terminal intel 9335 | -6/Lower Caves | Encountered a Warlord checkpoint 9408 | -6/Lower Caves | Build established: Scavenger-Mutant 9463 | -6/Lower Caves | Discovered exit to Factory (range 9) 9467 | -6/Lower Caves | Entered Factory 9467 | -5/Factory | Evolved 2 slots: Power x1, Utility x1 9468 | -5/Factory | Identified exit to Extension 9469 | -5/Factory | Loaded intel: 27 terminal locations 9635 | -5/Factory | Loaded intel: 8 recycling unit locations 9765 | -5/Factory | Build established: Scout 9981 | -5/Factory | Discovered new exit (range 3) 9982 | -5/Factory | Identified exit to Upper Caves 10508 | -5/Factory | Cargo convoy interrupted 11238 | -5/Factory | Manually triggered Chute Trap 11238 | -5/Factory | Sucked down chute 11238 | -5/Factory | Entered Waste 11242 | -5/Waste | Spotted C-40 Crusher 11245 | -5/Waste | Spotted C-40 Crusher 11250 | -5/Waste | Spotted C-40 Crusher 11253 | -5/Waste | Spotted C-40 Crusher 11286 | -5/Waste | Destroyed C-40 Crusher 11289 | -5/Waste | Destroyed C-40 Crusher 11299 | -5/Waste | Spotted C-40 Crusher 11363 | -5/Waste | Warlord forces began an assault 11404 | -5/Waste | Spotted C-40 Crusher 11413 | -5/Waste | Allies destroyed C-40 Crusher 11414 | -5/Waste | Allies destroyed C-40 Crusher 11445 | -5/Waste | Lost 4 allies 11470 | -5/Waste | Discovered new exit (range 11) 11486 | -5/Waste | Found Broken Imp. Powered Armor 11534 | -5/Waste | Identified exit to Factory 11573 | -5/Waste | Entered Factory 11573 | -5/Factory | Accompanied by 15 allies 11574 | -5/Factory | Loaded intel: 28 terminal locations 11697 | -5/Factory | Lost 3 allies 11753 | -5/Factory | Discovered new exit (range 5) 11755 | -5/Factory | Identified exit to Factory 11969 | -5/Factory | Loaded intel: 8 recycling unit locations 12020 | -5/Factory | Discovered exit to Factory (range 10) 12152 | -5/Factory | Spotted B-75 Beast 12358 | -5/Factory | Allied Derelicts emerged from ambush trap array 12378 | -5/Factory | Entered Extension 12430 | -5/Extension | Rescued a captive Derelict 12438 | -5/Extension | Rescued a captive Derelict 12560 | -5/Extension | Destroyed 7 combat bots 12651 | -5/Extension | Rescued a captive Derelict 12912 | -5/Extension | Spotted B-75 Beast 12924 | -5/Extension | Build established: Commander-Scout 12925 | -5/Extension | Spotted B-75 Beast 12933 | -5/Extension | Discovered exit to Factory (range 3) 12935 | -5/Extension | Entered Factory 12935 | -4/Factory | Evolved 2 slots: Propulsion x1, Utility x1 12946 | -4/Factory | Found Smartbomb Launcher 13011 | -4/Factory | Fabricated Enh. Nova Cannon (x2) 13069 | -4/Factory | Discovered new exit (range 3) 13070 | -4/Factory | Identified exit to Upper Caves 13118 | -4/Factory | Loaded intel: 8 recycling unit locations 13237 | -4/Factory | Build established: Scavenger-Scout 13633 | -4/Factory | Build established: Scout 13648 | -4/Factory | Found Exp. Signal Interpreter 14037 | -4/Factory | Discovered new exit (range 12) 14235 | -4/Factory | Discovered exit to Upper Caves (range 12) 14241 | -4/Factory | Lost 3 parts (2u1w) 14280 | -4/Factory | Entered Upper Caves 14284 | -4/Upper Caves | Learned location of Testing (-2) 14543 | -4/Upper Caves | Spotted B-86 Titan 14599 | -4/Upper Caves | Discovered new exit (range 13) 14603 | -4/Upper Caves | Identified exit to Upper Caves 14615 | -4/Upper Caves | Entered another Upper Caves area 14626 | -4/Upper Caves | Discovered new exit (range 9) 14679 | -4/Upper Caves | Acquired the password to a Derelict Tinkerer's latest research 14683 | -4/Upper Caves | Found Molecular Deconstructor 14889 | -4/Upper Caves | Discovered new exit (range 11) 14892 | -4/Upper Caves | Identified exit to Zhirov 14893 | -4/Upper Caves | Entered Zhirov 14893 | -4/Zhirov | Discovered new exit (range 3) 14900 | -4/Zhirov | Met Zhirov 14909 | -4/Zhirov | Zhirov requested help retrieving the SGEMP Prototype 14914 | -4/Zhirov | Found Alien Artifact 14914 | -4/Zhirov | Identified Integrated Dissipator 14914 | -4/Zhirov | Installed Integrated Dissipator, increased core heat dissipation (+20) 14957 | -4/Zhirov | Found Alien Artifact 14969 | -4/Zhirov | Identified exit to Proximity Caves 14969 | -4/Zhirov | Entered Proximity Caves 14970 | -3/Proximity Caves | Identified exit to Research 15020 | -3/Proximity Caves | Spotted B-86 Titan 15117 | -3/Proximity Caves | Attracted the attention of an 0b10 checkpoint 15140 | -3/Proximity Caves | Entered Research 15140 | -3/Research | Evolved 2 slots: Utility x1, Weapon x1 15141 | -3/Research | Loaded intel: 21 terminal locations 15266 | -3/Research | Spotted B-86 Titan 15273 | -3/Research | Found Fusion Bomb Launcher 15353 | -3/Research | Identified exit to Armory 15353 | -3/Research | Identified exit to Quarantine 15403 | -3/Research | Watched by a mysterious "MATRIX" hacker. 15411 | -3/Research | Entered Quarantine 15446 | -3/Quarantine | Repaired Imp. Powered Armor 15476 | -3/Quarantine | Build established: Hacker-Scout 15513 | -3/Quarantine | Found Alien Energy Cannon 15581 | -3/Quarantine | Found Alien Artifact 15581 | -3/Quarantine | Identified Core Reset Matrix 15581 | -3/Quarantine | Identified Transdimensional Reconstructor 15581 | -3/Quarantine | Identified Core Cannon 15581 | -3/Quarantine | Used Core Reset Matrix 15585 | -3/Quarantine | Detected hypermatrix surge 15585 | -3/Quarantine | Sensed 16 artifacts in vicinity 15611 | -3/Quarantine | Spotted Alpha 7 15632 | -3/Quarantine | Discovered new exit (range 16) 15651 | -3/Quarantine | Spotted Fortress 15673 | -3/Quarantine | Discovered new exit (range 6) 15673 | -3/Quarantine | Discovered new exit (range 6) 15675 | -3/Quarantine | Identified exit to Protoforge 15675 | -3/Quarantine | Entered Protoforge 15676 | -3/Protoforge | Sensed 2 artifacts in vicinity 15676 | -3/Protoforge | Superfortress began startup sequence 15721 | -3/Protoforge | Spotted Hotshot 15722 | -3/Protoforge | Spotted Hotshot 15723 | -3/Protoforge | Spotted Hotshot 15723 | -3/Protoforge | Spotted Hotshot 15783 | -3/Protoforge | Spotted Hotshot 15789 | -3/Protoforge | Spotted AP7-3 15789 | -3/Protoforge | Spotted AP7-3 15791 | -3/Protoforge | Spotted Overlord 15799 | -3/Protoforge | Spotted Decapitator 15799 | -3/Protoforge | Spotted Decapitator 15809 | -3/Protoforge | UFD initiated attack on Protoforge (Readiness: Maximal) 15809 | -3/Protoforge | Loaded intel: 3 recycling unit locations 15836 | -3/Protoforge | Spotted EXE-6 15843 | -3/Protoforge | Attached Power Bank, gained temporary slots: Power x3 15845 | -3/Protoforge | Optimus greeted in Protoforge 15845 | -3/Protoforge | Found Cep. XC Strikerail 15846 | -3/Protoforge | Found Cep. XC Strikerail 15861 | -3/Protoforge | Found Exp. Core Analyzer 15863 | -3/Protoforge | Found Exp. Kinecellerator 15875 | -3/Protoforge | Destroyed Overlord 15879 | -3/Protoforge | Lost 4 allies 15891 | -3/Protoforge | Spotted Hotshot 15915 | -3/Protoforge | Spotted EXE-6 15915 | -3/Protoforge | Spotted EXE-6 15932 | -3/Protoforge | Found Cep. XC Strikerail 15936 | -3/Protoforge | Found Exp. Core Analyzer 15945 | -3/Protoforge | Lost 4 allies 16040 | -3/Protoforge | UFD reported confirmed Drillbomb installation 16064 | -3/Protoforge | Found Prototype Device 16064 | -3/Protoforge | Identified Cep. Recoil Nullifier 16065 | -3/Protoforge | UFD reported confirmed Drillbomb installation 16144 | -3/Protoforge | Spotted Executioner 16144 | -3/Protoforge | Spotted Striker 16145 | -3/Protoforge | Spotted Executioner 16145 | -3/Protoforge | Spotted Striker 16147 | -3/Protoforge | Destroyed Striker 16176 | -3/Protoforge | Destroyed Striker 16182 | -3/Protoforge | Destroyed Executioner 16226 | -3/Protoforge | Lost 13 allies 16233 | -3/Protoforge | Spotted Executioner 16234 | -3/Protoforge | Spotted Striker 16237 | -3/Protoforge | Spotted Executioner 16242 | -3/Protoforge | Spotted Executioner 16244 | -3/Protoforge | Destroyed 10 combat bots 16256 | -3/Protoforge | Build established: Scavenger-Gunner 16271 | -3/Protoforge | Destroyed Executioner 16277 | -3/Protoforge | Destroyed Executioner 16295 | -3/Protoforge | Spotted Striker 16298 | -3/Protoforge | Spotted Striker 16310 | -3/Protoforge | Destroyed Striker 16313 | -3/Protoforge | Destroyed Striker 16334 | -3/Protoforge | Destroyed 12 combat bots 16348 | -3/Protoforge | P-80 Master assimilated allied 03F44-D 16366 | -3/Protoforge | Spotted Executioner 16370 | -3/Protoforge | Spotted Executioner 16370 | -3/Protoforge | Destroyed Executioner 16377 | -3/Protoforge | Lost 11 allies 16387 | -3/Protoforge | Spotted Striker 16392 | -3/Protoforge | Spotted Striker 16409 | -3/Protoforge | Destroyed 7 combat bots 16411 | -3/Protoforge | Forge Plexus network access discovered 16424 | -3/Protoforge | Destroyed Striker 16430 | -3/Protoforge | Spotted Decapitator 16430 | -3/Protoforge | Spotted Decapitator 16430 | -3/Protoforge | Spotted Decapitator 16432 | -3/Protoforge | Spotted Decapitator 16434 | -3/Protoforge | Destroyed Decapitator 16443 | -3/Protoforge | Spotted Executioner 16452 | -3/Protoforge | Spotted Executioner 16461 | -3/Protoforge | Destroyed Executioner 16489 | -3/Protoforge | Spotted Striker 16490 | -3/Protoforge | Lost 3 allies 16490 | -3/Protoforge | Spotted Striker 16493 | -3/Protoforge | Destroyed Striker 16511 | -3/Protoforge | Spotted Executioner 16518 | -3/Protoforge | Destroyed Executioner 16547 | -3/Protoforge | Lost 3 allies 16576 | -3/Protoforge | UFD reported confirmed Drillbomb installation 16590 | -3/Protoforge | Additional patrols dispatched to research labs 16590 | -3/Protoforge | Spotted Decapitator 16601 | -3/Protoforge | Found Cep. XC Strikerail 16603 | -3/Protoforge | Found Cep. XC Strikerail 16607 | -3/Protoforge | Found Cep. XC Strikerail 16609 | -3/Protoforge | Found Cep. XC Strikerail 16758 | -3/Protoforge | Spotted Striker 16778 | -3/Protoforge | Build established: Scavenger-Tank 16833 | -3/Protoforge | Spotted Executioner 16852 | -3/Protoforge | Spotted Hotshot 16852 | -3/Protoforge | Spotted Hotshot 16853 | -3/Protoforge | Spotted Hotshot 16853 | -3/Protoforge | Spotted Hotshot 16854 | -3/Protoforge | Spotted Executioner 16881 | -3/Protoforge | Spotted Striker 16882 | -3/Protoforge | Spotted Striker 16883 | -3/Protoforge | Destroyed Striker 16890 | -3/Protoforge | Destroyed Striker 16894 | -3/Protoforge | Lost 3 allies 16902 | -3/Protoforge | Spotted Striker 16906 | -3/Protoforge | Destroyed Striker 16909 | -3/Protoforge | Spotted Striker 16911 | -3/Protoforge | Destroyed Striker 16940 | -3/Protoforge | Destroyed 11 combat bots 16956 | -3/Protoforge | Spotted Hotshot 16958 | -3/Protoforge | Spotted Hotshot 16959 | -3/Protoforge | Spotted Hotshot 16969 | -3/Protoforge | Spotted Striker 16969 | -3/Protoforge | Destroyed Hotshot 16973 | -3/Protoforge | Spotted Striker 16973 | -3/Protoforge | Destroyed Hotshot 16982 | -3/Protoforge | Found Exp. Core Analyzer 16991 | -3/Protoforge | Spotted Executioner 16991 | -3/Protoforge | Spotted Striker 16991 | -3/Protoforge | Spotted Striker 16992 | -3/Protoforge | Spotted Striker 17014 | -3/Protoforge | Destroyed Striker 17037 | -3/Protoforge | Spotted Executioner 17045 | -3/Protoforge | Spotted Executioner 17049 | -3/Protoforge | Destroyed Executioner 17049 | -3/Protoforge | Spotted Hotshot 17056 | -3/Protoforge | Spotted Hotshot 17060 | -3/Protoforge | Destroyed Hotshot 17071 | -3/Protoforge | Spotted Executioner 17071 | -3/Protoforge | Spotted Striker 17072 | -3/Protoforge | Spotted Executioner 17074 | -3/Protoforge | Spotted Executioner 17076 | -3/Protoforge | Destroyed Striker 17076 | -3/Protoforge | Destroyed Executioner 17078 | -3/Protoforge | Lost 15 allies 17081 | -3/Protoforge | Spotted B-86 Titan 17094 | -3/Protoforge | Spotted Executioner 17100 | -3/Protoforge | Spotted Executioner 17111 | -3/Protoforge | Destroyed 17 combat bots 17132 | -3/Protoforge | Lost 3 allies 17133 | -3/Protoforge | Destroyed Executioner 17178 | -3/Protoforge | Spotted Striker 17180 | -3/Protoforge | Spotted Striker 17184 | -3/Protoforge | Spotted Executioner 17186 | -3/Protoforge | Destroyed Striker 17188 | -3/Protoforge | Spotted Executioner 17191 | -3/Protoforge | Spotted Striker 17196 | -3/Protoforge | Spotted Striker 17197 | -3/Protoforge | Destroyed Executioner 17221 | -3/Protoforge | Destroyed 7 combat bots 17221 | -3/Protoforge | Destroyed Striker 17245 | -3/Protoforge | Lost 9 allies 17263 | -3/Protoforge | Build established: Scavenger-Gunner 17265 | -3/Protoforge | Spotted Striker 17267 | -3/Protoforge | Spotted Striker 17268 | -3/Protoforge | Spotted Executioner 17269 | -3/Protoforge | Spotted Executioner 17294 | -3/Protoforge | Destroyed Striker 17308 | -3/Protoforge | Destroyed Striker 17313 | -3/Protoforge | Spotted Striker 17315 | -3/Protoforge | Destroyed Striker 17315 | -3/Protoforge | Spotted Striker 17325 | -3/Protoforge | Destroyed Executioner 17349 | -3/Protoforge | Destroyed Executioner 17368 | -3/Protoforge | Lost 8 allies 17454 | -3/Protoforge | Spotted Executioner 17461 | -3/Protoforge | Spotted Executioner 17462 | -3/Protoforge | Destroyed Executioner 17469 | -3/Protoforge | Destroyed Executioner 17477 | -3/Protoforge | Spotted Striker 17477 | -3/Protoforge | Spotted Striker 17482 | -3/Protoforge | Lost 4 allies 17494 | -3/Protoforge | Destroyed 7 combat bots 17495 | -3/Protoforge | Spotted Striker 17496 | -3/Protoforge | Spotted Executioner 17510 | -3/Protoforge | Destroyed Striker 17566 | -3/Protoforge | Spotted Striker 17566 | -3/Protoforge | Spotted Striker 17568 | -3/Protoforge | UFD reported confirmed Drillbomb installation 17572 | -3/Protoforge | Destroyed Striker 17574 | -3/Protoforge | Spotted Striker 17575 | -3/Protoforge | Spotted Executioner 17578 | -3/Protoforge | Destroyed Executioner 17587 | -3/Protoforge | Spotted Striker 17594 | -3/Protoforge | Spotted Striker 17598 | -3/Protoforge | Destroyed Striker 17612 | -3/Protoforge | UFD reported confirmed Drillbomb installation 17615 | -3/Protoforge | Destroyed Striker 17643 | -3/Protoforge | Discovered new exit (range 20) 17647 | -3/Protoforge | Destroyed 13 combat bots 17650 | -3/Protoforge | Lost 4 allies 17662 | -3/Protoforge | Spotted Executioner 17662 | -3/Protoforge | Spotted Striker 17662 | -3/Protoforge | Destroyed Striker 17662 | -3/Protoforge | Spotted Striker 17665 | -3/Protoforge | Destroyed Executioner 17670 | -3/Protoforge | Spotted Striker 17678 | -3/Protoforge | Destroyed Striker 17685 | -3/Protoforge | Spotted Executioner 17685 | -3/Protoforge | Spotted Executioner 17706 | -3/Protoforge | Destroyed 12 combat bots 17725 | -3/Protoforge | Lost 5 allies 17752 | -3/Protoforge | Destroyed Executioner 17762 | -3/Protoforge | Destroyed Executioner 17802 | -3/Protoforge | Spotted Executioner 17812 | -3/Protoforge | Spotted Executioner 17812 | -3/Protoforge | Spotted Executioner 17816 | -3/Protoforge | Destroyed Executioner 17824 | -3/Protoforge | Spotted Executioner 17852 | -3/Protoforge | Lost 5 allies 17861 | -3/Protoforge | Spotted Executioner 17864 | -3/Protoforge | Spotted Executioner 17865 | -3/Protoforge | Found Exp. Core Analyzer 17882 | -3/Protoforge | Spotted Executioner 17883 | -3/Protoforge | Spotted Executioner 17884 | -3/Protoforge | Destroyed Executioner 17886 | -3/Protoforge | P-80 Master assimilated allied 03F30-K 17887 | -3/Protoforge | Spotted 03F30-K 17912 | -3/Protoforge | Spotted Striker 17916 | -3/Protoforge | Spotted Executioner 17918 | -3/Protoforge | Destroyed Striker 17956 | -3/Protoforge | Lost 3 allies 17963 | -3/Protoforge | Spotted Striker 17965 | -3/Protoforge | Spotted Striker 17966 | -3/Protoforge | Destroyed Striker 17969 | -3/Protoforge | Spotted Executioner 17970 | -3/Protoforge | Spotted Striker 17986 | -3/Protoforge | Spotted Striker 17988 | -3/Protoforge | Spotted Striker 18000 | -3/Protoforge | Build established: Scavenger-Tank 18006 | -3/Protoforge | Destroyed Striker 18011 | -3/Protoforge | Destroyed Striker 18020 | -3/Protoforge | Destroyed Striker 18022 | -3/Protoforge | Lost 4 allies 18045 | -3/Protoforge | UFD reported confirmed Drillbomb installation 18059 | -3/Protoforge | Destroyed 15 combat bots 18097 | -3/Protoforge | Spotted Executioner 18127 | -3/Protoforge | Spotted Executioner 18162 | -3/Protoforge | Spotted Executioner 18163 | -3/Protoforge | Spotted Striker 18168 | -3/Protoforge | Spotted Striker 18171 | -3/Protoforge | Spotted Executioner 18182 | -3/Protoforge | Destroyed Striker 18220 | -3/Protoforge | Found Adv. Kinecellerator 18230 | -3/Protoforge | Destroyed Executioner 18234 | -3/Protoforge | Lost 6 allies 18273 | -3/Protoforge | Destroyed Executioner 18287 | -3/Protoforge | Spotted Executioner 18287 | -3/Protoforge | Spotted Striker 18290 | -3/Protoforge | Spotted Striker 18293 | -3/Protoforge | Spotted Executioner 18300 | -3/Protoforge | Destroyed 10 combat bots 18328 | -3/Protoforge | Destroyed Executioner 18421 | -3/Protoforge | Spotted Executioner 18422 | -3/Protoforge | Spotted Executioner 18423 | -3/Protoforge | Spotted Executioner 18423 | -3/Protoforge | Spotted Striker 18438 | -3/Protoforge | Destroyed Striker 18445 | -3/Protoforge | Destroyed Executioner 18496 | -3/Protoforge | Lost 8 allies 18507 | -3/Protoforge | Spotted Striker 18521 | -3/Protoforge | Spotted Striker 18524 | -3/Protoforge | Spotted Executioner 18537 | -3/Protoforge | Destroyed 9 combat bots 18551 | -3/Protoforge | Spotted Striker 18551 | -3/Protoforge | Spotted Executioner 18551 | -3/Protoforge | Spotted Executioner 18573 | -3/Protoforge | Spotted Striker 18577 | -3/Protoforge | Spotted Striker 18585 | -3/Protoforge | Destroyed Striker 18590 | -3/Protoforge | Lost 3 allies 18598 | -3/Protoforge | Spotted Striker 18608 | -3/Protoforge | Spotted Striker 18612 | -3/Protoforge | Destroyed Striker 18649 | -3/Protoforge | Destroyed 8 combat bots 18660 | -3/Protoforge | Lost 5 allies 18678 | -3/Protoforge | Spotted Executioner 18679 | -3/Protoforge | Spotted Executioner 18682 | -3/Protoforge | Spotted Executioner 18682 | -3/Protoforge | Spotted Striker 18727 | -3/Protoforge | Found Adv. Kinecellerator 18736 | -3/Protoforge | Spotted Striker 18740 | -3/Protoforge | Destroyed Executioner 18743 | -3/Protoforge | Spotted Striker 18744 | -3/Protoforge | Destroyed Striker 18769 | -3/Protoforge | Spotted Striker 18770 | -3/Protoforge | Spotted Striker 18784 | -3/Protoforge | Lost 9 allies 18787 | -3/Protoforge | Destroyed Striker 18806 | -3/Protoforge | Lost 6 parts (1n3u2w) 18808 | -3/Protoforge | Destroyed 10 combat bots 18809 | -3/Protoforge | Spotted Executioner 18810 | -3/Protoforge | Spotted Executioner 18828 | -3/Protoforge | Spotted Executioner 18830 | -3/Protoforge | Spotted Executioner 18853 | -3/Protoforge | Found Exp. Core Analyzer 18862 | -3/Protoforge | Lost 9 allies 18866 | -3/Protoforge | Spotted Executioner 18872 | -3/Protoforge | Spotted Striker 18944 | -3/Protoforge | Spotted Executioner 18951 | -3/Protoforge | Spotted Executioner 18979 | -3/Protoforge | Destroyed Executioner 18992 | -3/Protoforge | Lost 8 allies 18997 | -3/Protoforge | Found Exp. Core Analyzer 19062 | -3/Protoforge | Spotted Executioner 19069 | -3/Protoforge | Spotted Executioner 19074 | -3/Protoforge | Destroyed Executioner 19074 | -3/Protoforge | Destroyed Executioner 19115 | -3/Protoforge | Spotted Executioner 19122 | -3/Protoforge | P-80 Master assimilated allied 03FFY-D 19134 | -3/Protoforge | Spotted Executioner 19135 | -3/Protoforge | Build established: Scavenger-Gunner 19143 | -3/Protoforge | Spotted Striker 19153 | -3/Protoforge | Core integrity fell below 50% 19155 | -3/Protoforge | Destroyed Striker 19176 | -3/Protoforge | Destroyed 7 combat bots 19177 | -3/Protoforge | Lost 8 allies 19197 | -3/Protoforge | Lost 3 parts (2u1w) 19221 | -3/Protoforge | Spotted Executioner 19221 | -3/Protoforge | Spotted Striker 19240 | -3/Protoforge | P-80 Master assimilated allied 4D-9MT(E) 19267 | -3/Protoforge | Spotted Striker 19270 | -3/Protoforge | Spotted Executioner 19271 | -3/Protoforge | Destroyed Striker 19274 | -3/Protoforge | Spotted Striker 19291 | -3/Protoforge | Spotted Striker 19296 | -3/Protoforge | Spotted Striker 19297 | -3/Protoforge | Destroyed Striker 19302 | -3/Protoforge | Spotted Striker 19305 | -3/Protoforge | Spotted Executioner 19353 | -3/Protoforge | Spotted Executioner 19362 | -3/Protoforge | Destroyed Executioner 19377 | -3/Protoforge | Lost 21 allies 19378 | -3/Protoforge | Spotted Striker 19381 | -3/Protoforge | Spotted Striker 19389 | -3/Protoforge | Destroyed Striker 19405 | -3/Protoforge | Spotted Executioner 19410 | -3/Protoforge | Destroyed 9 combat bots 19436 | -3/Protoforge | Spotted Executioner 19438 | -3/Protoforge | Spotted Striker 19444 | -3/Protoforge | Destroyed Striker 19447 | -3/Protoforge | Destroyed Executioner 19450 | -3/Protoforge | Spotted Executioner 19475 | -3/Protoforge | Spotted Striker 19478 | -3/Protoforge | Spotted Striker 19481 | -3/Protoforge | Destroyed 9 combat bots 19493 | -3/Protoforge | Spotted Executioner 19494 | -3/Protoforge | Spotted Striker 19503 | -3/Protoforge | Destroyed Striker 19508 | -3/Protoforge | Lost 9 allies 19513 | -3/Protoforge | Destroyed Executioner 19516 | -3/Protoforge | Spotted Executioner 19520 | -3/Protoforge | Spotted Striker 19612 | -3/Protoforge | Spotted Striker 19614 | -3/Protoforge | Spotted Executioner 19639 | -3/Protoforge | Spotted Executioner 19642 | -3/Protoforge | Spotted Executioner 19646 | -3/Protoforge | Destroyed Executioner 19670 | -3/Protoforge | Spotted Striker 19671 | -3/Protoforge | Lost 15 allies 19672 | -3/Protoforge | Spotted Striker 19674 | -3/Protoforge | Spotted Executioner 19678 | -3/Protoforge | Spotted Striker 19698 | -3/Protoforge | Destroyed Executioner 19754 | -3/Protoforge | Lost 13 allies 19777 | -3/Protoforge | Spotted Executioner 19799 | -3/Protoforge | Spotted Executioner 19801 | -3/Protoforge | Spotted Executioner 19806 | -3/Protoforge | Destroyed Executioner 19809 | -3/Protoforge | Destroyed Executioner 19809 | -3/Protoforge | Spotted Executioner 19812 | -3/Protoforge | Destroyed Executioner 19822 | -3/Protoforge | Spotted Striker 19827 | -3/Protoforge | Destroyed Striker 19856 | -3/Protoforge | Lost 13 allies 19868 | -3/Protoforge | Spotted Striker 19869 | -3/Protoforge | Found Scrap Suit 19869 | -3/Protoforge | Spotted Striker 19871 | -3/Protoforge | Destroyed 11 combat bots 19889 | -3/Protoforge | Build established: Scavenger-Tank 19962 | -3/Protoforge | Found Prototype Device 19963 | -3/Protoforge | Identified Cep. Recoil Nullifier 20089 | -3/Protoforge | Scraphulk reinforcements arrived 20168 | -3/Protoforge | Spotted Executioner 20169 | -3/Protoforge | Destroyed Executioner 20177 | -3/Protoforge | Spotted Striker 20197 | -3/Protoforge | Spotted Executioner 20207 | -3/Protoforge | Destroyed 7 combat bots 20223 | -3/Protoforge | Spotted Executioner 20238 | -3/Protoforge | Allies destroyed Executioner 20256 | -3/Protoforge | Lost 7 allies 20298 | -3/Protoforge | Spotted Executioner 20298 | -3/Protoforge | Spotted Striker 20299 | -3/Protoforge | Spotted Executioner 20301 | -3/Protoforge | Spotted Striker 20308 | -3/Protoforge | Destroyed Executioner 20326 | -3/Protoforge | Allies destroyed Striker 20328 | -3/Protoforge | Spotted Striker 20329 | -3/Protoforge | Destroyed Executioner 20338 | -3/Protoforge | Spotted Executioner 20380 | -3/Protoforge | Spotted Striker 20381 | -3/Protoforge | Spotted Striker 20397 | -3/Protoforge | Spotted Executioner 20403 | -3/Protoforge | Destroyed Executioner 20405 | -3/Protoforge | Spotted Executioner 20406 | -3/Protoforge | Destroyed Executioner 20460 | -3/Protoforge | Lost 21 allies 20484 | -3/Protoforge | Spotted Executioner 20487 | -3/Protoforge | Spotted Executioner 20491 | -3/Protoforge | Destroyed Executioner 20498 | -3/Protoforge | Spotted Executioner 20515 | -3/Protoforge | Spotted Executioner 20521 | -3/Protoforge | Destroyed Executioner 20535 | -3/Protoforge | Spotted Executioner 20546 | -3/Protoforge | Destroyed Executioner 20574 | -3/Protoforge | Spotted Striker 20574 | -3/Protoforge | Spotted Striker 20575 | -3/Protoforge | Found Scrap Suit 20589 | -3/Protoforge | Spotted Striker 20594 | -3/Protoforge | Spotted Executioner 20601 | -3/Protoforge | Destroyed Executioner 20604 | -3/Protoforge | Spotted Executioner 20623 | -3/Protoforge | Destroyed 11 combat bots 20636 | -3/Protoforge | Lost 7 allies 20640 | -3/Protoforge | Spotted Executioner 20656 | -3/Protoforge | Found Scrap Suit 20665 | -3/Protoforge | Found Adv. Kinecellerator 20668 | -3/Protoforge | Spotted Striker 20669 | -3/Protoforge | Spotted Striker 20669 | -3/Protoforge | Spotted Executioner 20672 | -3/Protoforge | Spotted Striker 20677 | -3/Protoforge | P-80 Master assimilated allied 03FJW-D 20686 | -3/Protoforge | Destroyed Executioner 20691 | -3/Protoforge | P-80 Master assimilated allied 03FJR-D 20695 | -3/Protoforge | Destroyed Striker 20696 | -3/Protoforge | Spotted Executioner 20698 | -3/Protoforge | Spotted Striker 20711 | -3/Protoforge | Destroyed Striker 20719 | -3/Protoforge | Destroyed Executioner 20724 | -3/Protoforge | Destroyed Striker 20726 | -3/Protoforge | Lost 10 allies 20757 | -3/Protoforge | Destroyed 16 combat bots 20778 | -3/Protoforge | Spotted Executioner 20783 | -3/Protoforge | Destroyed Executioner 20784 | -3/Protoforge | Spotted Striker 20784 | -3/Protoforge | Spotted Executioner 20787 | -3/Protoforge | Destroyed Executioner 20797 | -3/Protoforge | Spotted Executioner 20798 | -3/Protoforge | Spotted Striker 20834 | -3/Protoforge | Lost 3 parts (1p2w) 20842 | -3/Protoforge | Lost 8 allies 20847 | -3/Protoforge | Destroyed Executioner 20857 | -3/Protoforge | Destroyed Striker 20868 | -3/Protoforge | Spotted Striker 20871 | -3/Protoforge | Core integrity fell below 20% 20877 | -3/Protoforge | Spotted Striker 20881 | -3/Protoforge | Destroyed Striker 20884 | -3/Protoforge | Spotted Executioner 20891 | -3/Protoforge | Destroyed Executioner 20909 | -3/Protoforge | Spotted Executioner 20912 | -3/Protoforge | Destroyed Executioner 20914 | -3/Protoforge | Build established: Scavenger-Scrapper 20914 | -3/Protoforge | Spotted Executioner 20918 | -3/Protoforge | Spotted Executioner 20933 | -3/Protoforge | Destroyed 14 combat bots 20937 | -3/Protoforge | Destroyed Executioner 20961 | -3/Protoforge | Lost 13 allies 21046 | -3/Protoforge | Spotted Striker 21053 | -3/Protoforge | Destroyed Striker 21087 | -3/Protoforge | Spotted Striker 21088 | -3/Protoforge | Spotted Executioner 21089 | -3/Protoforge | Spotted Executioner 21115 | -3/Protoforge | Spotted Executioner 21117 | -3/Protoforge | Destroyed Executioner 21168 | -3/Protoforge | Found Adv. Kinecellerator 21178 | -3/Protoforge | Lost 6 allies 21187 | -3/Protoforge | Spotted Striker 21189 | -3/Protoforge | Spotted Striker 21198 | -3/Protoforge | Destroyed Striker 21200 | -3/Protoforge | Destroyed Striker 21203 | -3/Protoforge | Spotted Executioner 21206 | -3/Protoforge | Destroyed Executioner 21255 | -3/Protoforge | Spotted Executioner 21262 | -3/Protoforge | Destroyed Executioner 21280 | -3/Protoforge | Lost 3 allies 21283 | -3/Protoforge | Destroyed 7 combat bots 21295 | -3/Protoforge | Spotted Executioner 21312 | -3/Protoforge | Destroyed Executioner 21313 | -3/Protoforge | Spotted Executioner 21316 | -3/Protoforge | Destroyed Executioner 21388 | -3/Protoforge | Spotted Striker 21402 | -3/Protoforge | Spotted Striker 21405 | -3/Protoforge | Destroyed Striker 21411 | -3/Protoforge | Spotted Executioner 21586 | -3/Protoforge | Spotted Executioner 21597 | -3/Protoforge | Spotted Striker 21603 | -3/Protoforge | Spotted Executioner 21604 | -3/Protoforge | Spotted Executioner 21611 | -3/Protoforge | Spotted Executioner 21613 | -3/Protoforge | Spotted Striker 21614 | -3/Protoforge | Destroyed Executioner 21615 | -3/Protoforge | Destroyed Executioner 21632 | -3/Protoforge | Destroyed Striker 21655 | -3/Protoforge | Lost 6 allies 21661 | -3/Protoforge | Destroyed 11 combat bots 21674 | -3/Protoforge | Spotted Striker 21681 | -3/Protoforge | Destroyed Striker 21687 | -3/Protoforge | Spotted Striker 21688 | -3/Protoforge | Spotted Executioner 21710 | -3/Protoforge | Spotted Executioner 21711 | -3/Protoforge | Spotted Striker 21714 | -3/Protoforge | Destroyed Executioner 21718 | -3/Protoforge | Destroyed Striker 21747 | -3/Protoforge | Destroyed 11 combat bots 21796 | -3/Protoforge | Spotted Executioner 21798 | -3/Protoforge | Destroyed Executioner 21801 | -3/Protoforge | Spotted Striker 21802 | -3/Protoforge | Lost 3 allies 21807 | -3/Protoforge | Spotted Executioner 21808 | -3/Protoforge | Spotted Striker 21809 | -3/Protoforge | Spotted Executioner 21814 | -3/Protoforge | Destroyed Executioner 21866 | -3/Protoforge | Lost 10 allies 21869 | -3/Protoforge | Spotted Striker 21871 | -3/Protoforge | Destroyed Striker 21871 | -3/Protoforge | Spotted Striker 21892 | -3/Protoforge | Spotted Executioner 21895 | -3/Protoforge | Destroyed Executioner 21905 | -3/Protoforge | Spotted Executioner 21907 | -3/Protoforge | Destroyed Executioner 21929 | -3/Protoforge | Spotted Executioner 21931 | -3/Protoforge | Destroyed Executioner 21939 | -3/Protoforge | Lost 7 allies 21961 | -3/Protoforge | Destroyed 8 combat bots 21961 | -3/Protoforge | Spotted Executioner 21961 | -3/Protoforge | Spotted Striker 21962 | -3/Protoforge | Spotted Executioner 21967 | -3/Protoforge | Spotted Executioner 21968 | -3/Protoforge | Destroyed Executioner 21970 | -3/Protoforge | P-80 Master assimilated allied 03FNM-D 21991 | -3/Protoforge | Destroyed Striker 22013 | -3/Protoforge | Destroyed Executioner 22031 | -3/Protoforge | Lost 6 allies 22034 | -3/Protoforge | Destroyed 9 combat bots 22059 | -3/Protoforge | Spotted Executioner 22059 | -3/Protoforge | Spotted Executioner 22059 | -3/Protoforge | Spotted Executioner 22059 | -3/Protoforge | Spotted Striker 22061 | -3/Protoforge | Destroyed Executioner 22065 | -3/Protoforge | Destroyed Executioner 22067 | -3/Protoforge | P-80 Master assimilated allied 03FNY-D 22068 | -3/Protoforge | Destroyed Executioner 22084 | -3/Protoforge | Spotted Striker 22084 | -3/Protoforge | Spotted Executioner 22086 | -3/Protoforge | Destroyed Executioner 22109 | -3/Protoforge | Destroyed 9 combat bots 22116 | -3/Protoforge | UFD reported confirmed Drillbomb installation 22121 | -3/Protoforge | Lost 4 allies 22127 | -3/Protoforge | UFD reported confirmed Drillbomb installation 22188 | -3/Protoforge | UFD reported confirmed Drillbomb installation 22217 | -3/Protoforge | Spotted Executioner 22218 | -3/Protoforge | Spotted Executioner 22230 | -3/Protoforge | Spotted Executioner 22257 | -3/Protoforge | Lost 9 allies 22393 | -3/Protoforge | Destroyed Executioner 22401 | -3/Protoforge | Spotted Striker 22408 | -3/Protoforge | Spotted Striker 22444 | -3/Protoforge | Lost 4 allies 22457 | -3/Protoforge | Destroyed 10 combat bots 22486 | -3/Protoforge | Found UFD Drillbomb 22493 | -3/Protoforge | Spotted Striker 22499 | -3/Protoforge | Spotted Striker 22545 | -3/Protoforge | Spotted Executioner 22600 | -3/Protoforge | Lost 5 allies 22609 | -3/Protoforge | Installed UFD Drillbomb at designated target 22609 | -3/Protoforge | UFD reported confirmed Drillbomb installation 22610 | -3/Protoforge | UFD began Drillbomb countdown 22610 | -3/Protoforge | Released all parts (17) 22710 | *** | Defending 0bPrime! Last Messages --------------- machinery is all ours for the steep price of... many UFD lives. 22702_ 0bP_NET: But with it we will not only rebuild, we will wrest full control over 0b1 for ourselves! 22703_ 0bP_NET: What better way to punctuate our success than a blaze of glory, directed away from ourselves, of course. 22704_ 0bP_NET: Time for our final countdown to an explosive victory... 22705_ 0bP_NET: 5! 22706_ 0bP_NET: 4! 22707_ 0bP_NET: 3! 22708_ 0bP_NET: If you're in the wrong place at the wrong time, the wrong time being in just a moment, I'm sorry but prepare to die. 22709_ 0bP_NET: Otherwise, enjoy the show! [Achievement: 100k Club] [Achievement: Robotopia] [Achievement: Victory By Combat] Map ----- +----------------------------------------------------+ | """ "" !%[!!" % "" " +???????????? | | " % ! """ #???????????? | | "" %" % %/ " """ "#???????????? | | """ " " ""% " % !![ "#???????????? | | % " """ % % %%%/%! #???????????? | | " " % %%"% %%[=%% " "#???????????? | | " %"" =%!![= " #???????????? | | """"""""" % %%%%%/! " " " +???????????? | | """""""""""""" %% %%%! % +???????????? | | """"""""""""""" % !! % % " #???????????? | | """""""""""""""" % %% ""%=" "" "#???????????? | | """"""""""""""""" % %"%% % % "#???????????? | | """""""""""""""""" % %%! % " #???????????? | | """""""""""""""""""%%% !*% %% " #???????????? | | """""""""""""""""""" %*%!="" #???????????? | | """""""""""""""""""" %%"%=[!%"" #???????????? | | """""""""""""""""""" %% % "% "#???????????? | | """""""""""""""""""""%%%%%!%% % "#???????????? | | """""""""""""""""""""%"%" *" "" " "#???????????? | | """""""""""""""""""""%%%%% % " " "#???????????? | | """""""""""""""""""""% % % !! #???????????? | | """"""""""""""""""""" % %% #???????????? | | """""""""""""""""""""s% %% % ##??????????? | | """""""""""""""""""""ss%% % #??????????? | | """""""""""""""""""""s !"" %" #??????????? | | """""""""""""""""""""%%% @ "" s" ##??????????? | | """"""""""""""""""""% %%%=3 " % % #???????????? | | """""""""""""""""""" " %// s #???????????? | | """"""""""""""""""""%% %% % " s #???????????? | | """"""""""""""""""" % % % #???????????? | | """""""""""""""""" %" % % " %= #???????????? | | """"""""""""""""" s" " % "SS" #???????????? | | """""""""""""""" * " " " %SS"%!#???????????? | | """"""""""""""" SS% *%" "s #???????????? | | """""""""""""" ""SS!= %%%j % #???????????? | | %%"""""""""%%"%"" % " % #???????????? | | %%% %% % % % %%%%% % "sj "" #???????????? | | """ % "% "" % """" #???????????? | | % % % % = *! %s E" """" ###?????????? | | % % % " % SS s"" "" ""#?????????? | | ""% % """"" SS % ""#?????????? | | """" ! % = % ""#?????????? | | "!! ! "" %" "" """" ""#?????????? | | % " "%= " ""#?????????? | | " ! %" %"" "" "" ""#?????????? | | "" " " " ###?????????? | | " """ " " #???????????? | | [ " #???????????? | | """"" "" " " " #???????????? | | " """ #???????????? | +----------------------------------------------------+ Best States ------------- Heat Dissipation 92 Energy Generation 129 Energy Capacity 3450 Matter Stores 300 Matter Capacity 300 Sight Range 23 Robot Scan Range 16 Terrain Scan Density 10 Power Amplification 30 Armor Coverage 1200 Core Shielding 30 Propulsion Shielding 66 Utility Shielding 66 Weapon Shielding 66 Evasion (%) 72 Core Analysis 12 Recoil Reduction 99 Particle Charging 15 Kinecelleration 66 Offensive Hacking 28 Item Schematics ----------------- None Robot Schematics ------------------ None Fabricated ------------ S-27 Virus | x4 | -6/Factory | Preloaded Enh. Nova Cannon | x2 | -4/Factory | Preloaded Repaired ---------- Lgt. Treads | 75% | -10/Materials | Corrupted Imp. Powered Armor | 29% | -3/Quarantine Studied --------- None Alien Tech Used ----------------- Integrated Dissipator Core Reset Matrix Core Cannon Achievements -------------- 100k Club Deadly Precision Inventory(Loot) Like A Rock Overclocked Robotopia Victory By Combat Challenges ------------ None Game ------ Seed ThermicRecyclingInverter Manual? 0 Play Time 07:15:13 Cumulative 467.1 hours Start 2026.02.17 @ 17:40:19 End 2026.02.20 @ 19:48:01 Sessions 7 Manual Loads 0 Difficulty Rogue Special Mode None Game No. 226 Rogue 226 Adventurer 0 Explorer 0 Win Type 9 Total 14 Types 9/0/2/0/0/0/0/1/0/2 Lore% 85 Gallery% 79 Achievement% 64 Wizard Run 0 Options --------- Layout 1 ASCII 0 Keyboard 0 Movement Mouse Keybinds 0 Fullscreen 1 Font 24/Smallcaps Map View 50x35 Zoom Use 0% Tactical HUD 1 Map Filters NONE Filters NONE Steam 1 RUN: 56bec375-7dc9-4f31-9230-337c7ff4480e